Cogmind - Beta 16 @@@ ROGUE MODE // 2026.02.06 @ 02:06:20 Player: spider Result: Escaped singularity! Performance ------------- Evolutions (9) 4500 Regions Visited (30) 6000 Robots Destroyed (450) 2250 Value Destroyed (24286) 24286 Prototype IDs (371) 7420 Alien Tech Used (5) 1000 Bonus (54436) 54436 TOTAL SCORE: 99892 Bonus ------- High Alert Combat Kills 4285 Follower Combat Kills 3331 Entered Garrisons 600 Used RIF Installer 1500 Network Hubs Disabled 400 Registered with UFD 300 Met Optimus in HQ 500 Met Zhirov 300 Built Enhanced Grunts 300 Met R17 at Cetus 500 Found Hidden Lab 3000 Met R17 at Research 2000 Scanned by Researcher 500 Pursued by Intercept 1500 Acquired SGEMP 2000 Delivered SGEMP 2000 Destroyed MAIN.C Guards 500 Met MAIN.C 5000 Destroyed MAIN.C Shell 5000 Zhirov Destroyed MAIN.C 3000 Met Architect 300 Destroyed A8 300 Destroyed A6 400 Destroyed Architect 15000 Win 3000 Friendly Fire -1080 Cogmind --------- Core Integrity 549/1600 Matter 119/300 Energy 99/100 System Corruption 11% Temperature Cool (0) Movement Core (50) Location Near Former Tau Ceti IV Parts ------- > --- POWER (4) -------- (None) > --- PROPULSION (6) --- (None) > --- UTILITY (11) ----- (None) > --- WEAPON (4) ------- (None) > --- INVENTORY (5) ---- Experimental Cooling System Experimental Energy Well (600) Compact HERF Cannon Omega Cannon Peak State ------------ > --- POWER ------------ Zero-point Reactor Zero-point Reactor Zero-point Reactor Zero-point Reactor > --- PROPULSION ------- Experimental Biometal Heavy Treads Enhanced Armored Heavy Treads High-density Centrium Heavy Treads > --- UTILITY ---------- Advanced Power Amplifier 2N-1CE's Frost Array Huge Storage Unit Experimental Targeting Computer Experimental Core Analyzer Experimental Weapon Cycler Centrium Medium Armor Plating Heavy Regenerative Plating AEGIS Remote Shield Experimental System Purifier > --- WEAPON ----------- Cooled Nova Cannon Cooled Nova Cannon Null Cannon Null Cannon > --- INVENTORY -------- Zero-point Reactor Zero-point Reactor Zero-point Reactor Armored Heavy Treads Advanced Heavy Siege Treads Experimental Cooling System Experimental Energy Well Experimental Energy Well Experimental Energy Well Experimental Matter Compressor Triangulator Experimental Targeting Computer Experimental Core Analyzer Advanced Kinecellerator Heavy Regenerative Plating Advanced Force Field Transdimensional Reconstructor Compact HERF Cannon Potential Cannon Omega Cannon [Rating: 264] Favorites ----------- Power Zero-point Reactor Engine Cooled Ion Engine Power Core Fission Core Reactor Zero-point Reactor Propulsion Enhanced Biometal Leg Treads Light Treads Leg Enhanced Biometal Leg Wheel Compact Wheel Hover Unit Antigrav Array Flight Unit Flight Unit Utility Huge Storage Unit Device Experimental Heat Sink Storage Huge Storage Unit Processor Experimental Targeting Computer Hackware Relay Coupler [NC] Protection Heavy Regenerative Plating Weapon Enhanced Nova Cannon Energy Gun Heavy Beamcaster Energy Cannon Enhanced Nova Cannon Ballistic Gun Advanced KE Penetrator Ballistic Cannon Improved Light Cannon Launcher Guided EMP Blaster Special Weapon Guided Remote Datajack Slashing Weapon Dual-blade Saw Build | -11 -10 -10 -9 -9 -9 -9 -6 -6 -6 -6 -6 -6 -6 -6 -5 -5 -5 -5 -4 -4 -4 -4 -3 -3 -2 -2 -2 -1 -1 -1 ------- Run | Yrd Mat Min Mat Sto Rec Scr Fac Was Fac Ext Cet Arc Hub Gar Fac Upp Upp Zhi Pro Fac Arm Lab Res Gar Res Tes Gar Acc Com Ac0 Slots Evolved 18 | . . . 2 . . . 6 . . . . . . . 2 . . . . 2 . . 2 . 2 . . 2 . . Power 3 | . . . . . . . 1 . . . . . . . . . . . . . . . . . 1 . . 1 . . Propulsion 4 | . . . 1 . . . 2 . . . . . . . . . . . . 1 . . . . . . . . . . Utility 9 | . . . 1 . . . 2 . . . . . . . 2 . . . . 1 . . 2 . 1 . . . . . Weapon 2 | . . . . . . . 1 . . . . . . . . . . . . . . . . . . . . 1 . . Parts Attached 402 | 6 7 7 29 16 1 11 18 15 5 21 6 7 12 30 2 2 2 3 4 7 12 16 23 20 5 27 15 5 61 7 Power 49 | 1 1 . 3 . . 1 2 . . 5 . 1 1 4 . . . 1 . 1 . . 4 2 3 4 5 1 8 1 Engine 9 | 1 . . 3 . . 1 1 . . 2 . . . 1 . . . . . . . . . . . . . . . . Core 3 | . 1 . . . . . 1 . . 1 . . . . . . . . . . . . . . . . . . . . Reactor 37 | . . . . . . . . . . 2 . 1 1 3 . . . 1 . 1 . . 4 2 3 4 5 1 8 1 Propulsion 91 | 2 . 4 12 6 . 5 6 1 2 4 2 . 2 7 . . . 1 . . 2 1 11 5 . 4 2 3 8 1 Treads 58 | 2 . 2 12 5 . 2 2 . . 3 2 . 1 . . . . . . . . . 6 5 . 4 2 3 6 1 Leg 16 | . . . . . . . . . . 1 . . 1 7 . . . . . . 2 1 2 . . . . . 2 . Wheel 12 | . . . . . . 3 4 1 2 . . . . . . . . . . . . . 2 . . . . . . . Hover 1 | . . . . . . . . . . . . . . . . . . . . . . . 1 . . . . . . . Flight 4 | . . 2 . 1 . . . . . . . . . . . . . 1 . . . . . . . . . . . . Utility 158 | 1 2 1 6 2 1 4 6 8 3 6 2 5 7 11 2 2 1 1 2 4 6 6 7 8 1 12 3 . 33 5 Device 71 | . . 1 2 2 . 1 2 3 1 2 . 4 5 3 . 1 . 1 1 1 3 1 4 4 . 6 3 . 18 2 Storage 14 | 1 2 . 1 . . 1 . 1 . . . . . 2 . . . . . . 1 . . . . . . . 5 . Processor 12 | . . . . . . . 1 . . . . . . 1 2 . 1 . 1 . 2 . . . . . . . 2 2 Hackware 13 | . . . . . . . 1 . 1 . . . . . . . . . . 1 . 3 1 2 1 3 . . . . Protection 48 | . . . 3 . 1 2 2 4 1 4 2 1 2 5 . 1 . . . 2 . 2 2 2 . 3 . . 8 1 Artifact . | . . . . . . . . . . . . . . . . . . . . . . . . . . . . . . . Weapon 104 | 2 4 2 8 8 . 1 4 6 . 6 2 1 2 8 . . 1 . 2 2 4 9 1 5 1 7 5 1 12 . Energy Gun 26 | 2 3 . 2 . . . 1 3 . 3 1 1 . 2 . . . . . . 3 2 . . . . . 1 2 . Energy Cannon 41 | . . . . 3 . . . 1 . 2 . . 1 4 . . 1 . 2 1 1 6 . 5 1 2 4 . 7 . Ballistic Gun 12 | . . 1 3 2 . 1 2 . . 1 1 . . 1 . . . . . . . . . . . . . . . . Ballistic Cannon 7 | . . . 3 . . . . . . . . . . . . . . . . . . . . . . 2 . . 2 . Launcher 8 | . 1 . . 2 . . . 2 . . . . . . . . . . . . . . 1 . . 2 . . . . Special Weapon 8 | . . 1 . 1 . . . . . . . . 1 1 . . . . . 1 . 1 . . . 1 1 . . . Impact Weapon . | . . . . . . . . . . . . . . . . . . . . . . . . . . . . . . . Slashing Weapon 2 | . . . . . . . 1 . . . . . . . . . . . . . . . . . . . . . 1 . Piercing Weapon . | . . . . . . . . . . . . . . . . . . . . . . . . . . . . . . . Special Melee Weapon . | . . . . . . . . . . . . . . . . . . . . . . . . . . . . . . . Unidentified Prototypes 69 | . . 1 5 3 . . 1 3 . . 4 . 5 2 . . 1 4 . . 2 11 1 . . 10 1 . 15 . Corrupted Parts 8 | . . . . . . . . . . . . 2 . 2 . . . . . . . . . . . . . . 3 1 System Corruption 56 | . . . . . . . . . . . . 9 . 18 . . . . . . . . . . . . . . 19 10 Parts Lost 109 | . 1 4 8 . . . 5 . . 20 1 . 2 6 . . 2 . . 7 3 . 11 4 8 9 4 2 1 11 Power 23 | . 1 . . . . . . . . 4 . . . 3 . . 2 . . 1 . . 2 2 2 2 . 1 1 2 Propulsion 33 | . . 2 4 . . . 3 . . 5 . . 2 . . . . . . 1 2 . 7 1 1 1 1 1 . 2 Utility 35 | . . . 4 . . . . . . 7 1 . . . . . . . . 4 1 . 1 1 4 4 3 . . 5 Weapon 18 | . . 2 . . . . 2 . . 4 . . . 3 . . . . . 1 . . 1 . 1 2 . . . 2 Highest Loss Streak 10 | . 1 4 3 . . . 3 . . 10 1 . 1 3 . . 1 . . 6 1 . 10 2 6 5 2 1 1 7 To Critical Strikes 3 | . . . . . . . . . . . 1 . . . . . . . . . . . . . . . . 1 . 1 Average Backups 20 | 3 13 7 20 22 22 16 23 20 19 20 20 20 21 23 22 23 22 23 23 22 24 20 23 22 21 21 20 21 20 19 Power 1 | . 1 1 2 1 1 . . . 1 1 1 1 1 . 1 1 . . . . 1 1 . . 1 1 1 1 1 2 Propulsion 2 | 1 3 . 5 7 8 4 6 2 2 2 2 2 2 2 2 2 2 2 2 . . 2 1 1 . . 1 . 1 1 Utility 9 | . 4 2 3 5 5 5 10 10 10 9 9 11 12 14 13 14 15 15 15 14 11 8 12 11 10 11 10 9 9 12 Weapon 5 | . 2 . 8 7 6 3 3 5 5 5 5 5 4 4 4 5 4 4 4 4 9 6 6 7 7 6 5 7 6 3 Tool/Special . | . . . . . . . . . . . . . . . . . . . . . . . . . . . . . . . Unused Backups 126 | . . 9 14 11 . 17 6 7 . 3 6 . 3 6 . . 1 . 1 . 3 3 4 9 . 3 3 1 13 3 Power 15 | . . 1 1 1 . 2 . . . 1 2 . 2 . . . . . . . 1 . . 1 . 1 . . 2 . Propulsion 26 | . . 2 2 3 . 5 . 5 . 1 3 . 1 . . . . . . . . . 1 1 . 1 . . 1 . Utility 46 | . . 5 . 2 . 5 6 2 . . . . . 4 . . . . 1 . 1 . 2 6 . . 2 1 6 3 Weapon 37 | . . 1 11 5 . 4 . . . 1 1 . . 2 . . 1 . . . 1 2 1 1 . 1 1 . 4 . Tool/Special 2 | . . . . . . 1 . . . . . . . . . . . . . . . 1 . . . . . . . . Average Slot Usage (%) 80 | . 92 18 82 95 97 49 89 99 86 82 85 85 80 82 99 100 97 97 99 94 97 91 87 79 77 79 75 78 70 79 Engine 2 | . . . 7 11 11 5 2 6 6 7 6 6 3 . 5 4 1 . . . . . . . . . . . . . Reactor 7 | . . . . . . . . . . 3 6 6 8 9 5 5 6 8 10 10 10 10 8 7 10 12 13 15 11 15 Treads 13 | . 28 5 29 32 33 12 10 6 6 10 20 20 18 8 . . . . . . . . 13 14 12 12 10 12 11 11 Leg 4 | . . . . . . . . . . . . . 1 14 29 29 29 29 29 30 30 31 4 . . . . . . . Wheel 1 | . . . . . . 4 18 25 13 7 . . . . . . . . . . . . 3 . . . . . . . Device 11 | . . . 9 14 19 . 9 7 9 9 6 9 13 13 17 17 14 11 11 9 12 11 16 14 17 15 12 12 13 12 Storage 6 | . 21 2 10 11 11 10 6 6 6 6 6 6 6 6 5 5 5 5 5 5 5 5 4 4 4 4 4 4 4 3 Processor 6 | . . . . . . . 4 6 6 6 6 6 1 . 4 5 7 11 11 10 12 15 14 14 13 13 13 12 8 14 Protection 6 | . . . 3 3 1 9 10 11 8 8 11 9 4 7 11 10 11 11 11 9 7 5 5 8 5 2 4 4 6 8 Energy Gun 3 | . 27 5 4 3 . . . 13 15 13 . 3 6 3 . . . . . . 10 . . . . . . . . . Energy Cannon 9 | . . . . 12 19 1 4 1 3 1 13 6 5 12 17 17 17 17 16 12 4 11 13 10 9 9 11 15 12 12 Ballistic Gun 1 | . . . 7 5 1 2 12 3 . 1 5 6 3 . . . . . . . . . . . . . . . . . Peak Build Rating 264 | 6 11 16 28 32 32 35 54 70 87 90 102 107 126 130 126 129 127 130 139 153 159 154 163 164 170 192 198 211 264 254 Average Rating 129 | 5 9 2 20 25 27 18 48 64 83 71 92 105 111 116 124 123 122 126 130 139 145 138 143 147 152 172 183 203 227 243 On Entrance 102 | . 6 10 6 25 27 32 35 49 67 83 67 102 107 124 112 126 120 121 130 133 125 140 150 153 145 148 191 184 208 249 Avg Prop Armor Cover (%) 5 | . . . . . . 6 9 5 5 5 . . 3 2 . . . . . . 3 3 12 . . 5 5 . . . Naked Turns 419 | . . 177 . . . 236 . . . . . . . . . . . . . . . . . . . . . . . 6 Heaviest Build 271 | 14 100 90 109 111 113 113 126 143 148 142 140 150 186 162 148 156 157 164 166 188 198 183 199 191 195 195 215 233 271 238 Greatest Support 255 | 40 40 40 63 63 60 60 60 54 56 110 180 180 180 160 150 150 150 150 150 180 180 160 201 215 215 240 235 211 255 255 Greatest Overweight (x) 16 | . 2 2 4 1 1 10 4 2 5 5 1 . 1 1 . 1 1 1 1 1 1 1 16 1 1 1 1 1 2 1 Average Overweight (x) . | . 1 . 1 1 1 2 2 2 2 1 . . . . . . . . . . . . 3 . . . . 1 . . Largest Inventory Capacity 25 | 8 25 25 25 25 25 25 25 25 25 25 25 25 25 25 25 25 25 25 25 25 25 25 25 25 25 25 25 25 25 25 Average Capacity 24 | 7 22 7 24 25 25 19 25 25 25 25 25 25 25 25 25 25 25 25 25 25 25 25 25 25 25 25 25 25 25 24 Most Carried 25 | 6 16 16 25 25 25 25 25 25 25 25 25 25 25 25 25 25 25 25 25 25 25 25 25 25 25 25 25 25 25 25 Average Carried 23 | 3 13 6 20 24 24 16 24 24 24 24 24 24 24 24 23 25 24 24 24 24 24 21 24 24 24 24 24 24 24 23 Final Capacity 25 | 8 25 5 25 25 25 25 25 25 25 25 25 25 25 25 25 25 25 25 25 25 25 25 25 25 25 25 25 25 25 5 Final Carried 25 | 6 16 5 25 25 25 25 22 25 24 25 25 25 25 25 25 25 25 25 25 21 25 25 25 25 25 25 24 25 25 5 Class Distribution -------------------- 30% | Scavenger-Tank 15% | Generator-Gunner 13% | Mutant 10% | Commander-Mutant 7% | Generator-Tank 7% | Scavenger-Gunner 5% | Scavenger-Mutant 4% | Tank Dominant Class ---------------- Mutant | -10/Materials Mutant | -10/Mines Mutant | -9/Materials Mutant | -9/Storage Commander-Mutant | -9/Recycling Commander-Mutant | -9/Scraptown Tank | -6/Factory Tank | -6/Waste Tank | -6/Factory Scavenger-Tank | -6/Extension Scavenger-Tank | -6/Cetus Scavenger-Tank | -6/Archives Scavenger-Tank | -6/Hub_04(d) Scavenger-Tank | -6/Garrison Scavenger-Tank | -5/Factory Scavenger-Tank | -5/Upper Caves Scavenger-Tank | -5/Upper Caves Scavenger-Tank | -5/Zhirov Scavenger-Tank | -4/Proximity Caves Scavenger-Tank | -4/Factory Scavenger-Gunner | -4/Armory Scavenger-Gunner | -4/Lab Scavenger-Gunner | -3/Research Scavenger-Tank | -3/Garrison Scavenger-Tank | -2/Research Scavenger-Tank | -2/Testing Scavenger-Tank | -2/Garrison Generator-Tank | -1/Access Generator-Gunner | -1/Command Generator-Gunner | -1/Access_0 Resources | -11 -10 -10 -9 -9 -9 -9 -6 -6 -6 -6 -6 -6 -6 -6 -5 -5 -5 -5 -4 -4 -4 -4 -3 -3 -2 -2 -2 -1 -1 -1 ----------- Run | Yrd Mat Min Mat Sto Rec Scr Fac Was Fac Ext Cet Arc Hub Gar Fac Upp Upp Zhi Pro Fac Arm Lab Res Gar Res Tes Gar Acc Com Ac0 Matter Collected 11899 | 246 268 48 1042 573 115 90 681 346 177 531 97 132 541 1032 25 229 80 80 260 236 808 197 379 310 235 999 404 141 1474 123 Remotely . | . . . . . . . . . . . . . . . . . . . . . . . . . . . . . . . Salvage Created 29210 | 215 516 7 1581 1231 279 . 534 138 375 1875 70 307 2291 2026 25 237 264 195 253 543 741 80 1392 991 1507 3412 2093 927 4135 970 Parts 1235 | 17 31 . 114 71 15 . 20 5 11 79 2 27 82 71 . 10 6 2 13 21 27 6 44 31 86 121 74 46 181 22 Haulers Intercepted 15 | . 2 . 6 5 . . . . . 1 . . . . . . . . . . . . 1 . . . . . . . Recyclers Shooed 14 | . . 1 2 2 2 . 1 . . 1 . . 2 . . . . . . . . . . . 2 1 . . . . Parts Field Recycled . | . . . . . . . . . . . . . . . . . . . . . . . . . . . . . . . Retrieved Matter . | . . . . . . . . . . . . . . . . . . . . . . . . . . . . . . . Parts Self-Destructed 28 | . . . . . . . . . . . . . . . . 9 6 2 11 . . . . . . . . . . . Prevented 4 | . . . . . . . . . . . . . . . . . . . 4 . . . . . . . . . . . Parts Restored . | . . . . . . . . . . . . . . . . . . . . . . . . . . . . . . . Kills | -11 -10 -10 -9 -9 -9 -9 -6 -6 -6 -6 -6 -6 -6 -6 -5 -5 -5 -5 -4 -4 -4 -4 -3 -3 -2 -2 -2 -1 -1 -1 ------- Run | Yrd Mat Min Mat Sto Rec Scr Fac Was Fac Ext Cet Arc Hub Gar Fac Upp Upp Zhi Pro Fac Arm Lab Res Gar Res Tes Gar Acc Com Ac0 Combat Hostiles Destroyed 345 | . 18 4 31 17 1 . 6 . 6 22 1 . 20 31 . 6 16 . 7 11 12 1 18 12 17 34 19 11 3 21 Melee 15 | . . . . . . . . . . 4 . . 9 1 . . . . . . 1 . . . . . . . . . Guns 62 | . 3 . 9 6 . . 6 . 4 10 . . . 15 . . . . . . 9 . . . . . . . . . Cannons 165 | . . . 22 8 1 . . . 1 2 1 . 3 11 . 6 15 . 5 5 2 . 13 9 12 16 13 9 1 10 AOE 54 | . 15 4 . 3 . . . . . 5 . . 3 2 . . . . . 1 . . 1 3 3 5 2 1 . 6 Classes Destroyed 24 | 3 5 1 3 . . . 1 1 1 1 . . 3 . . 1 . . . . 1 . 1 . . 2 . . . . Worker 28 | 1 3 . 4 5 . . 1 . . 2 . . 7 . . . . . . . . . 1 . 2 2 . . . . Builder 17 | . 2 . 3 . . . . . . 4 . . 3 . . . . . . . . . . . 2 3 . . . . Tunneler 7 | 4 . . . . . . . . . . . . 3 . . . . . . . . . . . . . . . . . Hauler 15 | . 2 . 6 5 . . . . . 1 . . . . . . . . . . . . 1 . . . . . . . Recycler 22 | 1 . . 2 3 3 . 1 . . 2 . . 4 . . . . . . . . . . . 2 3 . 1 . . Mechanic 4 | . . . 1 . . . 1 . . . . . 1 . . . . . . . . . 1 . . . . . . . Operator 11 | . . . 1 1 . . . . . . . 9 . . . . . . . . . . . . . . . . . . Watcher 10 | . 2 . 1 . . . . . . 2 . . 1 . 1 . . . . 1 1 . . . . 1 . . . . Swarmer 57 | . 6 . 3 3 . . . . . 2 . . . 10 . 4 5 . 5 5 . . 2 8 4 . . . . . Saboteur 2 | . . . . . . . . . . . . . . . . . . . . . 2 . . . . . . . . . Grunt 102 | . 12 . 19 7 1 . 4 . 3 8 . . 5 11 . . . . . 2 3 . 4 1 3 11 8 . . . Brawler 5 | . . . . . . . . . 1 . . . 1 . . . . . . 1 . . . . . . 2 . . . Duelist 7 | . . . . . . . . . . . . . 3 1 . . . . . . 2 . . . . . 1 . . . Researcher 1 | . . . . . . . . . . . . . . . . . . . . . . . . . . 1 . . . . Sentry 52 | . . . 9 7 1 . 1 . 2 10 . . 3 6 . . . . 1 2 1 . 2 1 1 2 3 . . . Specialist 2 | . . . . . . . . . . . . . 1 . . . . . . . . . . . . 1 . . . . Hunter 26 | . . . . . . . . . . . . . . . . . . . . 1 . . 4 2 2 7 2 6 2 . Programmer 34 | . . . . . . . 1 . . 1 . . 2 2 . 2 . . 1 . 4 . . . 7 7 2 5 . . Behemoth 4 | . . . . . . . . . . 1 . . . 1 . . . . . . . . . 1 . . 1 . . . Cetus Guard 1 | . . . . . . . . . . . 1 . . . . . . . . . . . . . . . . . . . Enhanced Grunt 12 | . . . . . . . . . . . . . 1 . . . . . . . . . . . . . . . . 11 Enhanced Sentry 1 | . . . . . . . . . . . . . . . . . . . . . . . . . . . . . . 1 Enhanced Hunter 6 | . . . . . . . . . . . . . . . . . . . . . . . . . . . . . . 6 Lightning 5 | . . . . . . . . . . . . . 5 . . . . . . . . . . . . . . . . . Tracker 4 | . . . . . . . . . . . . . . . . . . . . . . . 2 . . 2 . . . . Combat Programmer 2 | . . . . . . . . . . . . . . . . . . . . . . . . . . 2 . . . . Striker 5 | . . . . . . . . . . . . . . . . . . . . . . . 4 . . 1 . . . . Alpha 7 1 | . . . . . . . . . . . . . . . . . . . . . . . . . . 1 . . . . Samaritan 1 | . . . . . . . . . . . . . . . . 1 . . . . . . . . . . . . . . Assembled 15 | . . 4 . . . . . . . . . . . . . . 11 . . . . . . . . . . . . . Martyr 2 | . . . . . . . . 2 . . . . . . . . . . . . . . . . . . . . . . Best Kill Streak 15 | 6 8 4 5 4 1 . 2 . 2 9 1 4 15 6 1 4 11 . 4 12 5 1 4 5 11 11 7 4 2 5 Combat Bots Only 11 | . 7 4 5 3 1 . 2 . 2 5 1 . 8 6 . 4 11 . 4 11 5 1 4 5 6 7 7 4 2 5 Max Kills in Single Turn 7 | 2 3 2 2 4 1 . 1 1 1 4 1 1 7 1 1 1 2 . 2 2 1 1 2 2 3 3 1 2 2 2 Gunslinging . | . . . . . . . . . . . . . . . . . . . . . . . . . . . . . . . Exploded 3 | . 3 2 . 3 . . . . . 1 . . 2 1 . . . . . 1 . . 1 2 3 1 1 1 . 1 Melee 2 | . . . . . . . . . . 2 . . 1 1 . . . . . . 1 . . . . . . . . . Uniques/NPCs Destroyed 5 | . . . . . . . . . . . . . . . . . . . . . . 1 . . . . . . 1 3 A5 (-4/Lab) MAIN.C Shell (-1/Command) A8 (-1/Access_0) A6 (-1/Access_0) Architect (-1/Access_0) Combat | -11 -10 -10 -9 -9 -9 -9 -6 -6 -6 -6 -6 -6 -6 -6 -5 -5 -5 -5 -4 -4 -4 -4 -3 -3 -2 -2 -2 -1 -1 -1 -------- Run | Yrd Mat Min Mat Sto Rec Scr Fac Was Fac Ext Cet Arc Hub Gar Fac Upp Upp Zhi Pro Fac Arm Lab Res Gar Res Tes Gar Acc Com Ac0 Hostile Shots Fired 4026 | . 75 22 132 60 4 . 82 . 83 490 5 4 410 310 . 54 66 . 38 256 48 9 303 87 188 272 164 108 94 662 Missed 1147 | . 17 6 28 18 2 . 25 . 30 178 3 3 82 78 . 19 9 . 17 95 16 2 80 27 49 85 29 32 21 196 Hits 2879 | . 58 16 104 42 2 . 57 . 53 312 2 1 328 232 . 35 57 . 21 161 32 7 223 60 139 187 135 76 73 466 Melee 51 | . . 4 . . . . . . . . . . 1 4 . . 10 . . . 3 . 11 . . 1 11 . . 6 Projectile 2828 | . 58 12 104 42 2 . 57 . 53 312 2 1 327 228 . 35 47 . 21 161 29 7 212 60 139 186 124 76 73 460 AOE 4 | . . . . . . . 2 . . . . . 1 . . . . . . . . . . . . 1 . . . . Critical Strikes 171 | . 1 . 2 1 . . 1 . 1 1 1 . 42 4 . 2 . . . 5 . . 12 4 8 13 8 5 2 58 Actively Blocked 22 | . . . . . . . . . . . . . . . . . . . . . . . 10 3 7 1 . . . 1 Part Disruptions 21 | . . . . . . . . . . . . . 2 . . . 1 . . . 1 1 . . 1 3 . . 11 1 Damage Taken 44103 | . 638 382 1487 617 26 . 1003 . 638 3151 83 54 1704 3340 . 292 947 . 317 2703 369 182 4066 1272 2137 3707 3337 1334 2108 8209 Core 2927 | . 136 62 151 78 14 . 45 . 29 267 . 7 111 116 . 34 36 . 30 117 . . 273 72 24 256 135 24 209 701 Absorbed by Shields 9512 | . . . . . . . . . . 25 28 . . . . 21 . . . 308 33 . 452 . 173 122 513 186 881 6770 Reduced by Siege Mode 836 | . . . . . . . . . . 13 . . . 139 . . . . . . . . 8 75 . 107 255 . 120 119 Redirected to Shielding 52 | . . . . . . . . . . . . . . . . . . . . . . . . . . . . . . 52 Ignored by Resistances 11292 | . . . . . . . . . . . . . 8212 146 . 329 . . 15 . 244 . . 31 1072 1164 79 . . . Regen/Repaired (Parts) 5565 | . . . . . . . . 220 . . . . . . . . . . . . . 52 746 . . 750 1537 413 991 856 Core Remaining (%) 62 | 100 . 20 . . . 39 . . . . . . . 32 . . . . 90 . . 100 . 73 . . 71 . . 34 Volleys Fired 1652 | 11 34 3 90 69 9 . 37 4 36 56 12 4 40 113 2 24 33 4 20 41 51 60 71 57 55 110 75 21 367 143 Largest 4 | 2 2 1 2 2 2 . 3 2 3 3 3 3 3 3 1 3 3 3 3 3 3 3 3 3 3 3 3 4 4 4 Hottest 490 | 100 115 30 79 136 136 . 133 93 243 243 200 200 240 270 90 270 270 270 270 215 195 360 360 360 360 360 360 490 480 360 Shots Fired 2891 | 21 54 3 179 128 20 . 106 6 70 134 30 12 60 221 2 46 73 12 40 47 100 104 129 86 84 171 160 56 514 223 Gun 667 | 21 40 . 64 73 4 . 85 2 47 112 8 4 30 79 . . . . . . 53 . 12 . . . . . 33 . Cannon 2048 | . . . 115 52 16 . 21 4 23 10 22 8 18 125 2 46 73 12 40 47 41 104 112 71 65 124 140 56 478 223 Launcher 109 | . 14 3 . 3 . . . . . 12 . . 11 8 . . . . . . . . 3 5 11 32 7 . . . Special 67 | . . . . . . . . . . . . . 1 9 . . . . . . 6 . 2 10 8 15 13 . 3 . Kinetic 335 | . . . 151 60 4 . 79 2 . 10 8 4 11 4 . . . . . . . . . . . 2 . . . . Thermal 2172 | 21 39 . 28 65 16 . 27 4 70 112 22 8 37 200 2 46 73 12 38 33 94 104 112 65 65 122 140 56 342 219 Explosive 25 | . 14 3 . 2 . . . . . . . . . . . . . . . . . . . . . 5 1 . . . Electromagnetic 292 | . 1 . . 1 . . . . . 12 . . 11 8 . . . . 2 14 . . 15 11 11 27 6 . 169 4 Robot Hit Streak 41 | 4 5 3 15 18 10 . 12 5 8 32 11 3 11 18 . 6 5 14 17 8 8 6 22 23 14 20 34 7 41 20 Robot Miss Streak 7 | 3 3 . 3 4 1 . 4 1 2 4 2 2 7 6 . 2 4 . 2 2 2 1 2 3 3 5 2 4 2 3 Penetration Max 1 | . . . . . . . 1 . . . . . 1 . . . . . . 1 . . . . . . . . . . Secondary Targets 3 | . . . . . . . 1 . . . . . . 1 . . . . . . 1 . . . . . . . . . Max Gunslinging Chain 1 | . . . . . . . 1 . . . . . . 1 . . . . . . 1 . . . . . . . . . Capacitor 191 | . . . . . . . . . . . . . . . . . . . . . . . . . . . . . 191 . Shots Hit Robots 1835 | 12 23 1 116 73 14 . 70 13 37 111 19 17 121 140 . 22 17 9 15 17 48 7 75 61 37 85 112 25 381 157 Core Hits 1043 | 7 45 7 63 36 7 . 27 5 11 83 11 8 103 65 . 5 15 4 5 18 22 3 35 32 50 96 64 17 114 85 Critical Kills 17 | . . . . . . . . . . . . . . . . . 1 . 1 . . 1 2 1 . 1 1 1 4 4 Critical Parts Destroyed 1 | . . . . . . . 1 . . . . . . . . . . . . . . . . . . . . . . . Critical Strikes 68 | . 3 . 3 1 . . 1 . 3 10 . 1 4 1 . . 1 . 2 3 . 1 2 1 . 1 1 1 24 4 Burn 19 | . 3 . 1 1 . . . . 3 10 . . . 1 . . . . . . . . . . . . . . . . Meltdown 17 | . . . . . . . . . . . . . . . . . 1 . 1 . . 1 2 1 . 1 1 1 4 4 Destroy 2 | . . . . . . . 1 . . . . 1 . . . . . . . . . . . . . . . . . . Blast 2 | . . . 2 . . . . . . . . . . . . . . . . . . . . . . . . . . . Corrupt 5 | . . . . . . . . . . . . . . . . . . . 1 3 . . . . . . . . 1 . Sever 19 | . . . . . . . . . . . . . . . . . . . . . . . . . . . . . 19 . Melee Attacks 251 | . . . . . . . 1 14 . 15 . 12 112 30 . . . . . . . . . . . . . . 67 . Impact . | . . . . . . . . . . . . . . . . . . . . . . . . . . . . . . . Slashing 251 | . . . . . . . 1 14 . 15 . 12 112 30 . . . . . . . . . . . . . . 67 . Piercing . | . . . . . . . . . . . . . . . . . . . . . . . . . . . . . . . Sneak Attacks 22 | . . . . . . . . 8 . 2 . 11 1 . . . . . . . . . . . . . . . . . Combat Hostiles . | . . . . . . . . . . . . . . . . . . . . . . . . . . . . . . . Follow-up Attacks 7 | . . . . . . . . . . 1 . . 5 1 . . . . . . . . . . . . . . . . Damage Inflicted 88642 | 137 1237 209 2564 1866 359 . 1406 685 880 3920 592 1232 7596 4890 54 830 761 292 583 1824 1481 229 3645 2706 2724 6468 5461 1379 11742 20890 Guns 10333 | 137 305 . 642 757 41 . 1203 32 809 2173 126 96 458 1520 . . . . . . 1129 . 223 . . . . . 682 . Cannons 48619 | . . . 1732 693 268 . 203 79 71 229 466 108 208 1959 . 819 761 292 583 969 352 229 3157 2427 1444 3000 4700 1283 7888 14699 Explosions 18597 | . 861 204 . 278 . . . . . 920 . . 3065 348 . . . . . 689 . . 253 279 1219 3411 761 88 30 6191 Melee 10103 | . . . . . . . . 574 . 589 . 1017 3718 1063 . . . . . . . . . . . . . . 3142 . Ramming 990 | . 71 5 190 138 50 . . . . 9 . 11 147 . 54 11 . . . 166 . . 12 . 61 57 . 8 . . Kinetic 4564 | . . . 2020 597 41 . 1062 32 . 207 126 96 257 63 . . . . . . . . . . . 63 . . . . Thermal 59504 | 137 305 . 354 853 268 . 344 79 880 2286 466 108 817 3416 . 819 761 292 499 739 1481 229 3157 2211 1713 3132 4700 1371 7335 20752 Explosive 2016 | . 861 204 . 278 . . . . . . . . . . . . . . . . . . . . . 567 106 . . . Electromagnetic 11465 | . . . . . . . . . . 829 . . 2657 348 . . . . 84 919 . . 476 495 950 2649 655 . 1265 138 Impact . | . . . . . . . . . . . . . . . . . . . . . . . . . . . . . . . Slashing 10103 | . . . . . . . . 574 . 589 . 1017 3718 1063 . . . . . . . . . . . . . . 3142 . Piercing . | . . . . . . . . . . . . . . . . . . . . . . . . . . . . . . . Highest Corruption 33 | . . 9 10 10 10 . 1 1 1 1 1 5 12 33 . . . . . 1 2 5 . . 7 14 17 1 11 11 Average Corruption 6 | . . 8 8 10 10 . 1 1 1 1 1 1 8 14 . . . . . 1 1 3 . . 5 9 16 1 5 1 Corruption Purged 41 | . . . . . . . . . . . . 10 . . . . . . . . . . . . . . . . 31 . Corruption Blocked . | . . . . . . . . . . . . . . . . . . . . . . . . . . . . . . . Effects 525 | . . 7 63 64 50 . . 5 6 9 4 1 43 101 . . . . . . 13 14 . . 10 52 45 9 23 6 Message Errors 115 | . . 1 15 12 11 . . 3 1 4 . . 6 25 . . . . . . 6 2 . . 1 10 10 1 6 1 Matter Fused 139 | . . 1 19 13 13 . . 1 3 2 . . 15 22 . . . . . . 2 2 . . 3 17 14 3 7 2 Heat Flow Errors 77 | . . 1 9 12 8 . . . . 1 . . 6 12 . . . . . . 2 2 . . 3 8 6 3 4 . Energy Discharges 60 | . . 2 8 6 8 . . . 2 1 1 . 6 11 . . . . . . 1 3 . . 1 3 3 . 3 1 Parts Rejected 4 | . . . 1 1 . . . . . . . . 1 1 . . . . . . . . . . . . . . . . Parts Fused 7 | . . . . . . . . 1 . . . . . 1 . . . . . . . 1 . . 1 2 . . 1 . Data Loss (minor) 43 | . . 1 3 2 6 . . . . . 1 1 4 13 . . . . . . 1 1 . . . 3 7 . . . Data Loss (major) 25 | . . 1 . 4 2 . . . . 1 2 . 2 6 . . . . . . . . . . . 4 2 . . 1 Misfires 17 | . . . . 3 2 . . . . . . . 2 6 . . . . . . . 1 . . . 1 . 2 . . Alerts 5 | . . . 1 4 . . . . . . . . . . . . . . . . . . . . . . . . . . Misdirections 10 | . . . 6 3 . . . . . . . . 1 . . . . . . . . . . . . . . . . . Weapon Failures 23 | . . . 1 4 . . . . . . . . . 4 . . . . . . 1 2 . . 1 4 3 . 2 1 Overload Shots 3 | . . . . . . . . . . . . . 1 1 . . . . . . . . . . . 1 . . . . Overflow Damage 1898 | . 2 1 1 50 . . . 39 . 3 . 246 122 108 19 118 10 17 24 36 28 7 79 15 156 160 97 2 64 494 Projectiles 1036 | . . . 1 . . . . . . . . . . 39 . 116 10 17 24 30 28 7 79 15 125 92 97 2 57 297 Explosions 359 | . 2 1 . 41 . . . . . . . . 44 . . . . . . 6 . . . . . 68 . . . 197 Melee 503 | . . . . 9 . . . 39 . 3 . 246 78 69 19 2 . . . . . . . . 31 . . . 7 . Knockbacks 20 | . 1 . 12 1 1 . . . . . . . 2 . . . . . . 1 . . . . 1 . . 1 . . Impact 8 | . 1 . . 1 1 . . . . . . . 2 . . . . . . 1 . . . . 1 . . 1 . . Kinetic 10 | . . . 10 . . . . . . . . . . . . . . . . . . . . . . . . . . . Secondary 2 | . . . 2 . . . . . . . . . . . . . . . . . . . . . . . . . . . Self-Inflicted Damage 492 | . 25 30 . 33 . . . . . . . . 20 . . . . . . . . . . 37 45 140 82 . . 80 Shots 39 | . 1 1 . 1 . . . . . . . . 7 . . . . . . . . . . 4 4 7 12 . . 2 Rammed 52 | . 10 1 20 8 2 . . . . 1 . 1 5 . . . . . . . . . . . 1 2 . 1 . . Targets Rammed 71 | . 10 1 23 11 4 . . . . 1 . 1 5 . 1 2 . . . 7 . . 1 . 1 2 . 1 . . Kicked 11 | . . . . . . . . . . . . . . . 1 2 . . . 7 . . 1 . . . . . . . Crushed 8 | . . . 3 3 2 . . . . . . . . . . . . . . . . . . . . . . . . . Highest Temperature 686 | 255 276 153 348 184 245 . 141 129 342 371 352 152 450 529 . 93 364 24 390 157 229 381 321 2 216 468 474 378 686 106 Average Temperature 105 | 107 77 61 90 51 92 . 43 64 106 136 193 58 143 147 . 46 94 14 114 51 54 86 121 2 82 140 134 85 87 19 Received Heat Transfer 5850 | . 276 40 657 249 9 . 312 . 282 676 9 . 288 750 . . 369 . 9 327 81 . 344 124 201 246 428 . 155 18 Effects 40 | 3 . . . . . . . . 3 1 1 . 4 9 . . 1 . . . . 3 3 . . . 4 1 7 . Shutdowns 6 | . . . . . . . . . . 1 . . 1 1 . . . . . . . . 1 . . . 1 1 . . Energy Bleed 7 | 1 . . . . . . . . . . 1 . . 3 . . 1 . . . . . . . . . . . 1 . Interference 18 | 2 . . . . . . . . 3 . . . 1 3 . . . . . . . 3 2 . . . 2 . 2 . Matter Decay 3 | . . . . . . . . . . . . . . 2 . . . . . . . . . . . . 1 . . . Short Circuit 3 | . . . . . . . . . . . . . 1 . . . . . . . . . . . . . . . 2 . Damage (minor) 2 | . . . . . . . . . . . . . 1 . . . . . . . . . . . . . . . 1 . Damage (core) 1 | . . . . . . . . . . . . . . . . . . . . . . . . . . . . . 1 . Siege Activations 21 | . . . . . . . . . . 2 . . . 2 . . . . . . . . 2 1 . 3 2 . 4 5 Total Turns 424 | . . . . . . . . . . 29 . . . 71 . . . . . . . . 19 48 . 62 46 . 79 70 Longest Duration 64 | . . . . . . . . . . 15 . . . 64 . . . . . . . . 11 48 . 32 26 . 63 23 Martial Activations . | . . . . . . . . . . . . . . . . . . . . . . . . . . . . . . . Shielding Activations . | . . . . . . . . . . . . . . . . . . . . . . . . . . . . . . . Robots Disrupted 2 | . . . . . . . . 1 . . . . 1 . . . . . . . . . . . . . . . . . Combat Hostiles 1 | . . . . . . . . . . . . . 1 . . . . . . . . . . . . . . . . . Robots Corrupted 53 | . 1 . . . . . . . . 1 . 1 7 2 1 1 . . 1 5 . . 3 . 2 13 3 . 11 1 Combat Hostiles 45 | . . . . . . . . . . . . . 5 2 . . . . 1 5 . . 3 . 2 12 3 . 11 1 Parts Fried 121 | . 2 . . . . . . . . 11 . 3 15 . 2 1 . . . 9 . . 3 3 8 33 6 . 21 4 Impact Corruptions 9 | . 1 . . 1 . . . . . . . 1 2 . 1 2 . . . . . . . . 1 . . . . . Robots Melted 19 | . . . . . . . . . 1 1 . . . . . . 1 . 1 . . 1 2 1 . 1 1 1 4 4 Combat Hostiles 16 | . . . . . . . . . 1 1 . . . . . . 1 . 1 . . 1 1 1 . 1 1 1 2 4 Parts Melted 111 | 1 2 . 1 1 . . 2 . 6 9 . . 1 17 . 2 3 1 3 . 4 7 7 2 5 5 5 5 15 7 Heat Transferred 48638 | 407 1036 . 851 1628 444 . 695 111 1591 4491 759 174 1141 5079 . 1100 1200 450 750 650 1703 133 2608 1643 1273 2728 3828 1086 3464 7615 Parts Sabotaged 10 | . . . . . . . . . . . . . . . . . . . . . 10 . . . . . . . . . Parts Stolen . | . . . . . . . . . . . . . . . . . . . . . . . . . . . . . . . Parts Stripped . | . . . . . . . . . . . . . . . . . . . . . . . . . . . . . . . Power Chain Reactions 17 | . . . . . . . . . . 4 . . 6 . . . . . . . . . . . 4 3 . . . . Alert | -11 -10 -10 -9 -9 -9 -9 -6 -6 -6 -6 -6 -6 -6 -6 -5 -5 -5 -5 -4 -4 -4 -4 -3 -3 -2 -2 -2 -1 -1 -1 ------- Run | Yrd Mat Min Mat Sto Rec Scr Fac Was Fac Ext Cet Arc Hub Gar Fac Upp Upp Zhi Pro Fac Arm Lab Res Gar Res Tes Gar Acc Com Ac0 Maximum Alert Level 5 | . . . 1 1 . . . . . 2 1 1 5 5 4 . . . . 1 2 . 1 3 2 3 3 3 1 . Low Security (%) 64 | 100 100 100 49 50 100 . 100 100 100 86 . 73 22 . . . . . . 78 54 . 93 . . . . . 97 . Level 1 15 | . . . 50 49 . . . . . 11 100 26 19 . . . . . . 21 44 . 6 28 54 69 . . 2 . Level 2 6 | . . . . . . . . . . 2 . . 11 . . . . . . . . . . 65 45 12 1 65 . . Level 3 5 | . . . . . . . . . . . . . . . . . . . . . . . . 5 . 18 98 34 . . Level 4 2 | . . . . . . . . . . . . . 44 12 100 . . . . . . . . . . . . . . . Level 5 5 | . . . . . . . . . . . . . 1 87 . . . . . . . . . . . . . . . . High Security . | . . . . . . . . . . . . . . . . . . . . . . . . . . . . . . . Max Security . | . . . . . . . . . . . . . . . . . . . . . . . . . . . . . . . Peak Influence 2901 | 15 191 11 380 313 148 . 87 24 151 405 352 257 1603 2901 1522 . . . . 401 402 . 274 703 642 862 1094 816 283 . Initial 1522 | . . 11 . 156 92 . . 24 . . 224 92 . 1113 1522 . . . . 5 168 . . 202 395 326 643 656 280 . Average 439 | 2 59 1 181 203 49 . 28 1 59 94 279 120 794 2117 1506 . . . . 82 206 . 42 500 452 445 983 620 218 . Influence Increases 15611 | 30 577 16 993 683 318 . 283 48 531 990 338 285 2226 1968 11 170 155 15 190 549 914 . 618 641 576 1378 611 394 103 . Destroy 0b10 Robot/C 7165 | . 360 . 620 340 60 . 120 . 280 520 160 80 680 780 . 120 100 . 140 220 460 . 380 335 255 630 315 165 45 . Destroy 0b10 Robot/NC 673 | 30 45 . 90 70 15 . 15 . 5 60 10 45 115 30 5 . . 15 . 5 5 . 15 10 24 40 20 4 . . Destroy Leader 1324 | . 78 . 184 120 . . 40 . 50 74 . . 164 70 2 20 10 . 20 42 62 . 82 40 56 114 48 40 8 . Allied During Kill 1372 | . . . . 2 36 . . . 5 169 152 125 519 89 . . . . . . 137 . 8 25 . 58 32 15 . . Successful Hack 312 | . 22 . 80 18 27 . . . 7 14 . . 26 14 . . . . . 29 13 . . 22 40 . . . . . Select Force Hacks 180 | . . . . . 180 . . . . . . . . . . . . . . . . . . . . . . . . . Disable Machine 1050 | . . . . 75 . . 15 . 15 15 . 30 390 15 . . . . . 135 120 . 45 15 12 144 . 12 12 . Anti-Garrison Action 1113 | . . . . . . . . . 150 . . . . 800 . . . . . . . . . 163 . . . . . . Destroy Structure 1591 | . 72 16 4 28 . . 3 48 19 18 16 5 317 80 4 . . . . 88 42 . 58 16 165 260 148 146 38 . Partial Spotted 39 | . . . 15 . . . . . . . . . . . . . . . . . . . . . 12 12 . . . . Lose Combat Pursuer 792 | . . . . 30 . . 90 . . 120 . . 15 90 . 30 45 . 30 30 75 . 30 15 12 120 48 12 . . Influence Decreases 15460 | 30 547 46 623 816 555 . 212 119 531 589 509 515 636 657 1419 823 626 384 181 215 915 342 348 208 698 1101 375 1050 390 . Entered New Map 5641 | . . 19 . 214 145 . . 47 . . 177 138 . 477 1379 553 160 369 . 4 175 342 . 68 308 255 215 438 158 . Time Decay 7681 | 30 537 10 523 592 410 . 172 66 286 459 262 337 516 . 40 270 446 15 181 141 470 . 268 . 310 526 . 592 222 . Lost Part 819 | . 10 17 80 . . . 40 . . 102 10 . 20 60 . . 20 . . 70 30 . 80 40 80 90 40 20 10 . Lost Ally 1124 | . . . 20 10 . . . 6 200 28 60 40 100 120 . . . . . . 240 . . 100 . 80 120 . . . Purge Threat 195 | . . . . . . . . . 45 . . . . . . . . . . . . . . . . 150 . . . . Squads Dispatched 61 | . 3 . 3 1 . . 2 . 4 2 . . 13 . . . . . . 4 4 . 11 . 3 8 . 3 . . Investigation 17 | . 2 . 2 . . . 1 . 1 1 . . 1 . . . . . . 2 . . 6 . . 1 . . . . Extermination 15 | . . . . . . . 1 . . . . . 3 . . . . . . 1 2 . . . 2 3 . 3 . . Reinforcement 17 | . 1 . 1 1 . . . . 1 1 . . 4 . . . . . . 1 2 . 2 . . 3 . . . . Assault 6 | . . . . . . . . . 2 . . . 4 . . . . . . . . . . . . . . . . . Garrison 2 | . . . . . . . . . . . . . 1 . . . . . . . . . 1 . . . . . . . Intercept 4 | . . . . . . . . . . . . . . . . . . . . . . . 2 . 1 1 . . . . Searches Triggered . | . . . . . . . . . . . . . . . . . . . . . . . . . . . . . . . Construction Impeded 1 | . . . . . . . . . . . . . 1 . . . . . . . . . . . . . . . . . Haulers Reinforced 1 | . . . . . . . . . . . . . . . . . . . . . . . 1 . . . . . . . Active Scanning Responses . | . . . . . . . . . . . . . . . . . . . . . . . . . . . . . . . Cargo Convoy Interrupts . | . . . . . . . . . . . . . . . . . . . . . . . . . . . . . . . Stealth | -11 -10 -10 -9 -9 -9 -9 -6 -6 -6 -6 -6 -6 -6 -6 -5 -5 -5 -5 -4 -4 -4 -4 -3 -3 -2 -2 -2 -1 -1 -1 --------- Run | Yrd Mat Min Mat Sto Rec Scr Fac Was Fac Ext Cet Arc Hub Gar Fac Upp Upp Zhi Pro Fac Arm Lab Res Gar Res Tes Gar Acc Com Ac0 Distress Signals 36 | . 4 . 4 5 . . . . . 3 2 . 3 . . . . . . 4 2 . 4 . 1 2 . 2 . . Communications Jammed 45 | . . . . . . . . . . . . . 21 . . . . . . 2 14 . . . 3 5 . . . . Distress Signals 40 | . . . . . . . . . . . . . 16 . . . . . . 2 14 . . . 3 5 . . . . Times Spotted 610 | . 24 15 50 30 4 . 14 4 8 39 10 13 39 46 1 8 19 . 9 37 19 1 35 23 21 51 22 15 4 49 Peak Tracking Total 19 | . 9 8 6 4 1 . 4 2 3 11 5 1 9 9 1 4 11 . 5 19 5 1 6 5 8 7 6 3 2 6 Tactical Retreats 39 | . . 1 . 1 . . 4 . . 2 . . 1 4 . 1 3 . 2 2 3 . 2 1 1 8 2 1 . . Traps | -11 -10 -10 -9 -9 -9 -9 -6 -6 -6 -6 -6 -6 -6 -6 -5 -5 -5 -5 -4 -4 -4 -4 -3 -3 -2 -2 -2 -1 -1 -1 ------- Run | Yrd Mat Min Mat Sto Rec Scr Fac Was Fac Ext Cet Arc Hub Gar Fac Upp Upp Zhi Pro Fac Arm Lab Res Gar Res Tes Gar Acc Com Ac0 Traps Triggered 34 | . 3 . 3 4 . . 2 . . 5 . . 1 2 . . . . . 4 2 . . 1 . 2 2 . 3 . Indirectly 5 | . . . . 1 . . . . . . . . . . . . . . . 3 . . . . . 1 . . . . Trap Hack Attempts . | . . . . . . . . . . . . . . . . . . . . . . . . . . . . . . . Triggered . | . . . . . . . . . . . . . . . . . . . . . . . . . . . . . . . Disarmed . | . . . . . . . . . . . . . . . . . . . . . . . . . . . . . . . Reprogrammed . | . . . . . . . . . . . . . . . . . . . . . . . . . . . . . . . Reused . | . . . . . . . . . . . . . . . . . . . . . . . . . . . . . . . Traps Extracted . | . . . . . . . . . . . . . . . . . . . . . . . . . . . . . . . Installed . | . . . . . . . . . . . . . . . . . . . . . . . . . . . . . . . Triggered . | . . . . . . . . . . . . . . . . . . . . . . . . . . . . . . . Machines | -11 -10 -10 -9 -9 -9 -9 -6 -6 -6 -6 -6 -6 -6 -6 -5 -5 -5 -5 -4 -4 -4 -4 -3 -3 -2 -2 -2 -1 -1 -1 ---------- Run | Yrd Mat Min Mat Sto Rec Scr Fac Was Fac Ext Cet Arc Hub Gar Fac Upp Upp Zhi Pro Fac Arm Lab Res Gar Res Tes Gar Acc Com Ac0 Machines Disabled 114 | . 1 . . 5 . . 1 . 2 6 . 2 26 7 . . 1 . . 9 8 9 3 5 1 16 . 1 7 4 Max in Single Turn 12 | . 1 . . 1 . . 1 . 1 1 . . 12 1 . . 1 . . 5 1 1 1 1 1 2 . 1 2 1 Garrison Access 6 | . . . . 1 . . 1 . 1 . . . . . . . . . . . . . 1 . 1 . . 1 . . Garrison Relay 8 | . . . . . . . . . . . . . . 6 . . . . . . . . . 2 . . . . . . Phase Generator 1 | . . . . . . . . . . . . . . . . . . . . . . . . . . . . . 1 . Network Hub 2 | . . . . . . . . . . . . . 2 . . . . . . . . . . . . . . . . . Energy Cycler 2 | . . . . . . . . . . 1 . . . . . . . . . . . . . . . . . 1 . . Machines Repaired . | . . . . . . . . . . . . . . . . . . . . . . . . . . . . . . . Machines Dismantled 3 | . . . . 3 . . . . . . . . . . . . . . . . . . . . . . . . . . Machines Sabotaged . | . . . . . . . . . . . . . . . . . . . . . . . . . . . . . . . Overloaded Fab Kills . | . . . . . . . . . . . . . . . . . . . . . . . . . . . . . . . Hacking | -11 -10 -10 -9 -9 -9 -9 -6 -6 -6 -6 -6 -6 -6 -6 -5 -5 -5 -5 -4 -4 -4 -4 -3 -3 -2 -2 -2 -1 -1 -1 --------- Run | Yrd Mat Min Mat Sto Rec Scr Fac Was Fac Ext Cet Arc Hub Gar Fac Upp Upp Zhi Pro Fac Arm Lab Res Gar Res Tes Gar Acc Com Ac0 Machines Accessed 91 | . 9 1 11 12 11 5 3 . 5 7 . . 4 1 . . 1 4 . 5 2 . 3 1 3 2 . 1 . . Terminals 56 | . 7 . 10 10 5 . 1 . 4 6 . . 3 1 . . . . . 3 2 . . 1 2 1 . . . . Fabricators . | . . . . . . . . . . . . . . . . . . . . . . . . . . . . . . . Repair Stations . | . . . . . . . . . . . . . . . . . . . . . . . . . . . . . . . Recycling Units 14 | . 2 . . 1 6 . 1 . . 1 . . . . . . . . . 2 . . 1 . . . . . . . Scanalyzers 2 | . . . 1 . . . . . 1 . . . . . . . . . . . . . . . . . . . . . Garrison Access 8 | . . . . 1 . . 1 . . . . . 1 . . . . . . . . . 2 . 1 1 . 1 . . Total Hacks 258 | . 21 1 33 26 25 28 5 . 10 12 . . 10 1 . . 1 17 . 31 7 . 4 3 15 6 . 2 . . Successful 151 | . 12 1 17 11 15 28 2 . 3 6 . . 5 1 . . 1 17 . 15 2 . 4 2 5 2 . 2 . . Failed 107 | . 9 . 16 15 10 . 3 . 7 6 . . 5 . . . . . . 16 5 . . 1 10 4 . . . . Catastrophic 22 | . 1 . 3 2 . . 1 . 1 2 . . 2 . . . . . . 4 . . . 1 3 2 . . . . Database Lockouts . | . . . . . . . . . . . . . . . . . . . . . . . . . . . . . . . Manual 157 | . 17 . 29 12 27 . 4 . 6 11 1 . 7 . . . . . . 27 3 . 1 2 10 . . . . . Terminals 171 | . 17 . 28 24 16 . 2 . 8 11 . . 8 1 . . . . . 28 7 . . 3 13 5 . . . . Fabricators . | . . . . . . . . . . . . . . . . . . . . . . . . . . . . . . . Repair Stations . | . . . . . . . . . . . . . . . . . . . . . . . . . . . . . . . Recycling Units 21 | . 4 . . 1 9 . 2 . . 1 . . . . . . . . . 3 . . 1 . . . . . . . Scanalyzers 7 | . . . 5 . . . . . 2 . . . . . . . . . . . . . . . . . . . . . Garrison Access 12 | . . . . 1 . . 1 . . . . . 2 . . . . . . . . . 3 . 2 1 . 2 . . Terminal Hacks 83 | . 3 1 6 4 2 28 . . 3 1 . . 3 1 . . 1 17 . 7 2 . . 1 2 1 . . . . Record 31 | . . . . . . 26 . . . . . . . . . . . 5 . . . . . . . . . . . . Part Schematic 7 | . 3 . . . . . . . . . . . . . . . . 4 . . . . . . . . . . . . Robot Schematic 1 | . . . . . 1 . . . . . . . . . . . . . . . . . . . . . . . . . Robot Analysis 8 | . . . 4 . . . . . . . . . . . . . . 4 . . . . . . . . . . . . Prototype ID Bank 4 | . . . . . . . . . . . . . . . . . . 4 . . . . . . . . . . . . Open Door 10 | . . 1 . 4 . 1 . . 1 1 . . . . . . 1 . . . 1 . . . . . . . . . Branch Access Points 4 | . . . 1 . . . . . 1 . . . . . . . . . . 1 . . . . 1 . . . . . Emergency Access Points 2 | . . . . . . . . . . . . . . 1 . . . . . . . . . 1 . . . . . . Terminal Index 1 | . . . . . . . . . . . . . . . . . . . . . . . . . 1 . . . . . Recycling Unit Index 1 | . . . . . . . . . . . . . . . . . . . . 1 . . . . . . . . . . Unreport Threat 2 | . . . . . . . . . 1 . . . . . . . . . . . . . . . . 1 . . . . Locate Traps 2 | . . . 1 . . . . . . . . . . . . . . . . 1 . . . . . . . . . . Maintenance Status 1 | . . . . . . . . . . . . . . . . . . . . 1 . . . . . . . . . . Patrol Status 1 | . . . . . . . . . . . . . . . . . . . . 1 . . . . . . . . . . Recall Investigation 1 | . . . . . . . . . . . . . 1 . . . . . . . . . . . . . . . . . Recall Reinforcements 1 | . . . . . . . . . . . . . 1 . . . . . . . . . . . . . . . . . Hauler Manifests 1 | . . . . . . . . . . . . . . . . . . . . 1 . . . . . . . . . . Registered Components 1 | . . . . . . . . . . . . . . . . . . . . 1 . . . . . . . . . . Zone Layout 3 | . . . . . 1 . . . . . . . 1 . . . . . . . 1 . . . . . . . . . Proto ID Catalog 1 | . . . . . . 1 . . . . . . . . . . . . . . . . . . . . . . . . Fabricator Hacks . | . . . . . . . . . . . . . . . . . . . . . . . . . . . . . . . Repair Station Hacks . | . . . . . . . . . . . . . . . . . . . . . . . . . . . . . . . Recycling Unit Hacks 3 | . 2 . . 1 . . . . . . . . . . . . . . . . . . . . . . . . . . Retrieve Components 3 | . 2 . . 1 . . . . . . . . . . . . . . . . . . . . . . . . . . Scanalyzer 3 | . . . 3 . . . . . . . . . . . . . . . . . . . . . . . . . . . Retrieve Study 3 | . . . 3 . . . . . . . . . . . . . . . . . . . . . . . . . . . Garrison Access Hacks 11 | . . . . 1 . . 1 . . . . . 1 . . . . . . . . . 3 . 2 1 . 2 . . Unlock Access 3 | . . . . . . . . . . . . . 1 . . . . . . . . . 1 . . 1 . . . . Seal Access 5 | . . . . 1 . . 1 . . . . . . . . . . . . . . . 1 . 1 . . 1 . . Coupler Status 3 | . . . . . . . . . . . . . . . . . . . . . . . 1 . 1 . . 1 . . Unauthorized Hacks 51 | . 7 . 8 5 13 . 1 . . 5 . . 1 . . . . . . 8 . . 1 1 1 . . . . . Terminals 40 | . 7 . 8 5 7 . . . . 4 . . 1 . . . . . . 6 . . . 1 1 . . . . . Assimilate 2 | . . . . . . . . . . . . . . . . . . . . 2 . . . . . . . . . . Botnet 13 | . 2 . 2 1 2 . . . . 1 . . 1 . . . . . . 2 . . . 1 1 . . . . . Operators 1 | . . . . . . . . . . . . . . . . . . . . 1 . . . . . . . . . . Skim 24 | . 5 . 6 4 5 . . . . 3 . . . . . . . . . 1 . . . . . . . . . . Fabricators . | . . . . . . . . . . . . . . . . . . . . . . . . . . . . . . . Repair Stations . | . . . . . . . . . . . . . . . . . . . . . . . . . . . . . . . Recycling Units 11 | . . . . . 6 . 1 . . 1 . . . . . . . . . 2 . . 1 . . . . . . . Tunnel 6 | . . . . . 6 . . . . . . . . . . . . . . . . . . . . . . . . . Fedlink 5 | . . . . . . . 1 . . 1 . . . . . . . . . 2 . . 1 . . . . . . . Scanalyzers . | . . . . . . . . . . . . . . . . . . . . . . . . . . . . . . . Garrison Access . | . . . . . . . . . . . . . . . . . . . . . . . . . . . . . . . Data Cores Recovered 1 | . . . 1 . . . . . . . . . . . . . . . . . . . . . . . . . . . Used . | . . . . . . . . . . . . . . . . . . . . . . . . . . . . . . . Hacking Detections 59 | . 8 . 11 8 5 . 2 . 4 6 1 . 4 . . . . . . 3 1 . . 1 3 2 . . . . Full Trace Events 3 | . . . . 1 . . . . 1 . . . . . . . . . . . . . . . . 1 . . . . Feedback Events . | . . . . . . . . . . . . . . . . . . . . . . . . . . . . . . . Feedback Blocked . | . . . . . . . . . . . . . . . . . . . . . . . . . . . . . . . Robot Schematics Acquired 1 | . . . . . 1 . . . . . . . . . . . . . . . . . . . . . . . . . Robots Built . | . . . . . . . . . . . . . . . . . . . . . . . . . . . . . . . Authchips . | . . . . . . . . . . . . . . . . . . . . . . . . . . . . . . . Time . | . . . . . . . . . . . . . . . . . . . . . . . . . . . . . . . Total Robot Build Rating . | . . . . . . . . . . . . . . . . . . . . . . . . . . . . . . . Part Schematics Acquired 6 | . 2 . . . . . . . . . . . . . . . . 4 . . . . . . . . . . . . Parts Built . | . . . . . . . . . . . . . . . . . . . . . . . . . . . . . . . Authchips . | . . . . . . . . . . . . . . . . . . . . . . . . . . . . . . . Time . | . . . . . . . . . . . . . . . . . . . . . . . . . . . . . . . Total Part Build Rating . | . . . . . . . . . . . . . . . . . . . . . . . . . . . . . . . Part Studies Acquired 3 | . . . 3 . . . . . . . . . . . . . . . . . . . . . . . . . . . Parts Repaired . | . . . . . . . . . . . . . . . . . . . . . . . . . . . . . . . Time . | . . . . . . . . . . . . . . . . . . . . . . . . . . . . . . . Parts Recycled . | . . . . . . . . . . . . . . . . . . . . . . . . . . . . . . . Recycled Matter . | . . . . . . . . . . . . . . . . . . . . . . . . . . . . . . . Retrieved Matter . | . . . . . . . . . . . . . . . . . . . . . . . . . . . . . . . Retrieved Components 16 | . 15 . . 1 . . . . . . . . . . . . . . . . . . . . . . . . . . Parts Scanalyzed . | . . . . . . . . . . . . . . . . . . . . . . . . . . . . . . . Part Schematics Acquired . | . . . . . . . . . . . . . . . . . . . . . . . . . . . . . . . Parts Damaged . | . . . . . . . . . . . . . . . . . . . . . . . . . . . . . . . Bothacking | -11 -10 -10 -9 -9 -9 -9 -6 -6 -6 -6 -6 -6 -6 -6 -5 -5 -5 -5 -4 -4 -4 -4 -3 -3 -2 -2 -2 -1 -1 -1 ------------ Run | Yrd Mat Min Mat Sto Rec Scr Fac Was Fac Ext Cet Arc Hub Gar Fac Upp Upp Zhi Pro Fac Arm Lab Res Gar Res Tes Gar Acc Com Ac0 Used RIF Installer 3 | . . . . . . . . . . . . . . 1 . . . . . . . . . 1 . . 1 . . . Threat Obfuscator 1 | . . . . . . . . . . . . . . . . . . . . . . . . 1 . . . . . . Program Shield 1 | . . . . . . . . . . . . . . . . . . . . . . . . . . . 1 . . . Robots Hacked 20 | . . . . . . . . . . . . . . . . . . . . . . . 1 6 2 11 . . . . Non-combat 1 | . . . . . . . . . . . . . . . . . . . . . . . . . . 1 . . . . Combat 19 | . . . . . . . . . . . . . . . . . . . . . . . 1 6 2 10 . . . . Robot Hacks Applied 21 | . . . . . . . . . . . . . . . . . . . . . . . 2 6 2 11 . . . . parse_system 1 | . . . . . . . . . . . . . . . . . . . . . . . . . . 1 . . . . drop_inventory 1 | . . . . . . . . . . . . . . . . . . . . . . . . . . 1 . . . . disable_scanner 4 | . . . . . . . . . . . . . . . . . . . . . . . . . . 4 . . . . scatter_targeting 2 | . . . . . . . . . . . . . . . . . . . . . . . . . . 2 . . . . amplify_resonance 2 | . . . . . . . . . . . . . . . . . . . . . . . . 2 . . . . . . disable_weapons 1 | . . . . . . . . . . . . . . . . . . . . . . . . . 1 . . . . . reboot_system 1 | . . . . . . . . . . . . . . . . . . . . . . . 1 . . . . . . . overwrite_iff 2 | . . . . . . . . . . . . . . . . . . . . . . . 1 1 . . . . . . formatsys_high 7 | . . . . . . . . . . . . . . . . . . . . . . . . 3 1 3 . . . . Relay Couplers Released 49 | . . . . . . . . . 2 . . . . 30 . . . . . . . . 2 9 3 3 . . . . Machine Destruction 42 | . . . . . . . . . 2 . . . . 26 . . . . . . . . 2 9 3 . . . . . Programmers 7 | . . . . . . . . . . . . . . 4 . . . . . . . . . . . 3 . . . . Attached 8 | . . . . . . . . . . . . . . . . . . . . . . 1 1 2 1 3 . . . . Fabnet Peak Effective % . | . . . . . . . . . . . . . . . . . . . . . . . . . . . . . . . Robots Rewired 35 | . . . . . . . . . . 16 . . 1 6 . . . . . . 4 . . 2 . . 6 . . . Allies Hacked 3 | . . . . . . . . . . . . . 2 . . . . . . . . . . . . 1 . . . . Hacks Repelled . | . . . . . . . . . . . . . . . . . . . . . . . . . . . . . . . Allies | -11 -10 -10 -9 -9 -9 -9 -6 -6 -6 -6 -6 -6 -6 -6 -5 -5 -5 -5 -4 -4 -4 -4 -3 -3 -2 -2 -2 -1 -1 -1 -------- Run | Yrd Mat Min Mat Sto Rec Scr Fac Was Fac Ext Cet Arc Hub Gar Fac Upp Upp Zhi Pro Fac Arm Lab Res Gar Res Tes Gar Acc Com Ac0 Total Allies 98 | . . . . 10 . . . 19 . 20 5 . 1 6 . . . . . . 14 . 1 6 1 3 6 3 3 . Largest Group 18 | . . . . 10 10 8 8 18 11 9 13 10 7 3 . . . . . . 10 . 1 3 1 2 6 3 3 . Highest-Rated Group 843 | . . . . 88 88 72 72 638 403 406 843 558 456 110 . . . . . . 481 . 64 264 64 216 180 379 376 . Highest-Rated Ally 159 | . . . . 16 16 16 16 50 46 159 159 96 110 110 . . . . . . 58 . 64 148 64 152 30 135 132 . Total Orders 44 | . . 1 1 1 . 2 . . . 2 . 4 . . . . . . . . 4 . . 6 . 10 . . . 13 STAY 18 | . . . . . . 1 . . . 1 . 2 . . . . . . . . 2 . . 4 . 6 . . . 2 FOLLOW 12 | . . . . . . 1 . . . 1 . 2 . . . . . . . . 2 . . 2 . 4 . . . . EXPLORE 7 | . . . . 1 . . . . . . . . . . . . . . . . . . . . . . . . . 6 RETURN 7 | . . 1 1 . . . . . . . . . . . . . . . . . . . . . . . . . . 5 Ally Attacks 718 | . . 1 4 1 18 . 2 101 80 82 61 29 116 23 . . . . . . 99 . 4 27 1 28 30 8 3 . Total Damage 19458 | . . . . . 165 . 23 3073 1931 1305 1253 817 3310 871 . . . . . . 2915 . 218 975 58 1737 633 148 26 . Kills 111 | . . . . . 2 . . 8 21 9 10 5 19 8 . . . . . . 13 . 1 5 . 8 2 . . . Allies Corrupted . | . . . . . . . . . . . . . . . . . . . . . . . . . . . . . . . Allies Melted 2 | . . . . . . . . . 1 1 . . . . . . . . . . . . . . . . . . . . Intel | -11 -10 -10 -9 -9 -9 -9 -6 -6 -6 -6 -6 -6 -6 -6 -5 -5 -5 -5 -4 -4 -4 -4 -3 -3 -2 -2 -2 -1 -1 -1 ------- Run | Yrd Mat Min Mat Sto Rec Scr Fac Was Fac Ext Cet Arc Hub Gar Fac Upp Upp Zhi Pro Fac Arm Lab Res Gar Res Tes Gar Acc Com Ac0 Active Infowar (turns) 11747 | . . . . . . 1 326 98 621 157 . . 713 142 90 502 890 275 1431 313 1136 851 925 179 603 749 3 . 1523 219 Sensors 7361 | . . . . . . 1 326 98 621 157 . . 5 . 90 463 792 275 1398 311 993 692 900 . 238 . . . 1 . Structural 618 | . . . . . . . . . . . . . . . . . . . . . . . 36 . . 579 3 . . . Traps 2 | . . . . . . . . . . . . . 2 . . . . . . . . . . . . . . . . . Triangulation 1388 | . . . . . . . . . . . . . . . . . . . . . . . . . . . . . 1169 219 Cloaking 2 | . . . . . . . . . . . . . . . . . . . . . . . . . . . . . 2 . Jamming 5000 | . . . . . . . . . . . . . 706 142 . 339 396 . 69 312 898 464 . 179 569 574 . . 352 . Robot Analysis Total 8 | . . . 4 . . . . . . . . . . . . . . 4 . . . . . . . . . . . . Derelict Logs Recovered 6 | . . 1 . . . . . . . . . . . . . 1 1 . 3 . . . . . . . . . . . Drone Launches 17 | . . 3 6 2 . . . . . . . . . . . . . . . . . . . . . . . . . 6 Drone Recoveries 8 | . . 2 2 1 . . . . . . . . . . . . . . . . . . . . . . . . . 3 Exploration | -11 -10 -10 -9 -9 -9 -9 -6 -6 -6 -6 -6 -6 -6 -6 -5 -5 -5 -5 -4 -4 -4 -4 -3 -3 -2 -2 -2 -1 -1 -1 ------------- Run | Yrd Mat Min Mat Sto Rec Scr Fac Was Fac Ext Cet Arc Hub Gar Fac Upp Upp Zhi Pro Fac Arm Lab Res Gar Res Tes Gar Acc Com Ac0 Turns Passed 48982 | 137 2169 252 2420 1868 1415 3404 788 1283 718 1575 572 884 1460 2507 90 587 1114 302 1479 462 1185 1107 1531 1272 697 1465 1088 1862 12407 882 Spaces Moved 22387 | 61 714 388 923 702 652 1842 451 906 366 659 149 295 626 1286 80 465 933 195 808 328 703 408 626 398 314 573 239 161 5850 286 Core 1158 | 6 . 367 . . . 776 . . . . . . . . . . . . . . . . . . . . . . . 9 Treads 13663 | 55 714 8 850 702 652 543 . . 8 211 149 295 626 755 . . . . . . . . 283 398 314 573 239 161 5850 277 Legs 4522 | . . . . . . . . . . . . . . 531 80 465 933 195 808 328 703 408 71 . . . . . . . Wheels 2950 | . . . . . . 523 451 906 358 448 . . . . . . . . . . . . 264 . . . . . . . Hover 8 | . . . . . . . . . . . . . . . . . . . . . . . 8 . . . . . . . Flight 86 | . . 13 73 . . . . . . . . . . . . . . . . . . . . . . . . . . . Fastest Speed 37 | 50 160 37 37 200 200 50 112 122 120 130 160 160 160 100 100 100 100 100 100 100 100 106 156 150 160 155 155 238 151 50 Average Speed 168 | 149 281 55 211 201 200 179 132 122 131 160 169 160 162 149 100 100 106 138 163 100 119 176 190 156 160 177 220 246 183 149 Slowest Speed 640 | 160 320 320 480 213 200 550 155 126 240 240 213 160 240 170 100 170 170 170 170 170 178 180 640 232 240 250 250 250 330 246 Overloaded Moves . | . . . . . . . . . . . . . . . . . . . . . . . . . . . . . . . Propulsion Burnouts . | . . . . . . . . . . . . . . . . . . . . . . . . . . . . . . . Robots Hopped . | . . . . . . . . . . . . . . . . . . . . . . . . . . . . . . . Potential Cave-ins 9 | . . . . . . . . 2 . . . . . . . . . . . 2 . . . . . . . 1 4 . Cave-ins Triggered . | . . . . . . . . . . . . . . . . . . . . . . . . . . . . . . . Teleports 3 | . . . . . . . . . . . . . . . . . . . . . 1 . . . . . . . 1 1 Exploration Rate (%) 58 | 5 93 67 87 94 90 84 14 96 12 86 61 97 55 88 4 75 93 60 87 13 38 88 25 41 15 74 32 5 92 40 Regions Visited 30 Branch Regions 17 Pre-discovered Areas 19 | . 3 1 1 . 7 3 . . . 1 . . . . . . . 3 . . . . . . . . . . . . Known Exits Taken 20 | . . . 1 . 1 1 . . 1 1 1 1 1 . 1 1 1 1 1 1 1 1 1 . 1 1 . 1 . . Unknown Exits Taken 5 | 1 1 1 . 1 . . . . . . . . . . . . . . . . . . . . . . . . 1 . Scrap Searched 10 | . . 1 . . . 3 . . . . . . . . . 1 3 . 2 . . . . . . . . . . . Spaces Dug 305 | . 8 15 . 21 . . 1 6 11 . . . 8 7 2 5 4 . 11 11 10 8 15 2 18 18 2 5 83 34 Terrain Destroyed 1818 | . 76 22 1 21 . . 2 7 20 3 6 4 358 11 2 24 42 . 22 48 20 28 30 8 53 83 48 46 307 526 Melee 16 | . . . . . . . 1 6 . . . . 2 7 . . . . . . . . . . . . . . . . Projectile 521 | . . . 1 . . . 1 1 20 . 6 4 18 4 2 24 42 . 22 21 20 28 30 8 33 39 25 20 113 39 AOE 1281 | . 76 22 . 21 . . . . . 3 . . 338 . . . . . . 27 . . . . 20 44 23 26 194 487 Terrain Rammed . | . . . . . . . . . . . . . . . . . . . . . . . . . . . . . . . Walls Destroyed . | . . . . . . . . . . . . . . . . . . . . . . . . . . . . . . . Machines Disabled . | . . . . . . . . . . . . . . . . . . . . . . . . . . . . . . . Actions | -11 -10 -10 -9 -9 -9 -9 -6 -6 -6 -6 -6 -6 -6 -6 -5 -5 -5 -5 -4 -4 -4 -4 -3 -3 -2 -2 -2 -1 -1 -1 --------- Run | Yrd Mat Min Mat Sto Rec Scr Fac Was Fac Ext Cet Arc Hub Gar Fac Upp Upp Zhi Pro Fac Arm Lab Res Gar Res Tes Gar Acc Com Ac0 Total 30915 | 83 797 418 1191 979 743 1950 569 1059 536 1046 448 681 868 1644 87 535 994 217 929 415 959 706 848 978 422 858 686 1585 7122 562 Wait 4227 | . 11 12 31 89 66 25 26 52 106 99 260 348 17 29 . 34 13 . 66 7 114 148 61 436 17 57 317 1378 376 32 Move 22360 | 60 713 387 922 701 651 1841 451 905 365 658 148 294 625 1285 79 464 932 194 807 328 702 407 626 397 313 573 238 160 5849 285 Hop . | . . . . . . . . . . . . . . . . . . . . . . . . . . . . . . . Pick Up 457 | 6 11 1 48 18 3 46 12 20 1 19 6 2 18 31 2 . 4 1 4 6 17 21 19 18 7 16 12 7 62 19 Fast Attach 351 | 6 3 4 14 11 1 7 6 8 2 13 6 7 10 28 . . . 8 4 4 24 16 16 14 4 25 3 6 97 4 Attach 200 | . 1 5 12 4 1 5 9 1 1 14 . . 10 20 2 . 2 1 3 9 6 6 10 8 8 13 7 1 30 11 Detach 62 | . . 2 3 2 2 . 1 2 . 4 2 . 4 9 . . . . 2 3 . 6 2 1 2 6 . . 9 . Swap 388 | . 10 1 11 18 2 1 13 24 19 9 1 4 9 26 1 11 7 2 14 5 20 4 19 14 13 25 16 3 34 52 Drop 620 | . 4 2 36 31 4 25 13 29 6 10 13 9 21 49 . . 3 7 9 6 16 38 23 33 2 31 16 8 160 16 Fire 1652 | 11 34 3 90 69 9 . 37 4 36 56 12 4 40 113 2 24 33 4 20 41 51 60 71 57 55 110 75 21 367 143 Melee 244 | . . . . . . . 1 14 . 14 . 12 107 29 . . . . . . . . . . . . . . 67 . Ram 1 | . . 1 . . . . . . . . . . . . . . . . . . . . . . . . . . . . Kick 10 | . . . . . . . . . . . . . . . 1 2 . . . 6 . . 1 . . . . . . . Crush 59 | . 10 . 23 11 4 . . . . 1 . 1 5 . . . . . . . . . . . 1 2 . 1 . . Escape Stasis 33 | . . . . 4 . . . . . 22 . . . 5 . . . . . . . . . . . . . . 2 . Rewire 229 | . . . . . . . . . . 127 . . 2 20 . . . . . . 9 . . . . . 2 . 69 . Trap . | . . . . . . . . . . . . . . . . . . . . . . . . . . . . . . . Miscellaneous 22 | . . . 1 21 . . . . . . . . . . . . . . . . . . . . . . . . . . Route ------- -11/Scrapyard -10/Materials (discovered 5 exits: *Mat x3 / *Min / Sub) -10/Mines -9/Materials (discovered 6 exits: *Mat x3 / *Min / *Sto x2) -9/Storage (discovered 2 exits: *Mat / *Rec) -9/Recycling (discovered 2 exits: [*Fac] / *Scr) -9/Scraptown (discovered 2 exits: *Fac x2) -6/Factory (discovered 6 exits: Fac x4 / *Low / Ext) -6/Waste -6/Factory (discovered 4 exits: *Low x2 / *Ext x2) -6/Extension (discovered 2 exits: *Fac / *Cet) -6/Cetus (discovered 2 exits: *Fac / *Arc) -6/Archives (discovered 3 exits: *Fac / *Hub x2) -6/Hub_04(d) (discovered 2 exits: *Fac / Gar) -6/Garrison (discovered 3 exits: *Fac x3) -5/Factory (discovered 2 exits: *Upp x2) -5/Upper Caves -5/Upper Caves (discovered 2 exits: *Fac / *Zhi) -5/Zhirov -4/Proximity Caves -4/Factory (discovered 5 exits: *Res x2 / Upp x2 / *Arm) -4/Armory -4/Lab -3/Research (discovered 2 exits: Res / Gar) -3/Garrison -2/Research (discovered 2 exits: *Tes x2) -2/Testing (discovered 2 exits: *Acc / Gar) -2/Garrison -1/Access (discovered 2 exits: Sur / *Com) -1/Command (discovered 3 exits: *Sur x2 / [*Ac0]) -1/Access_0 Near Former Tau Ceti IV History --------- Turn | Location | Event 38 | -11/Scrapyard | Discovered new exit (range 16) 138 | -11/Scrapyard | Entered Materials 263 | -10/Materials | Destroyed 7 combat bots 339 | -10/Materials | Build established: Mutant 363 | -10/Materials | Discovered new exit (range 8) 876 | -10/Materials | Discovered new exit (range 13) 1176 | -10/Materials | Core integrity fell below 50% 1457 | -10/Materials | Discovered new exit (range 15) 1758 | -10/Materials | Discovered new exit (range 16) 1777 | -10/Materials | Identified exit to Subcaves 1777 | -10/Materials | Learned location of 1 exit from Materials 1809 | -10/Materials | Learned location of 2 exits from Subcaves 1844 | -10/Materials | Learned location of Recycling (-9) 1847 | -10/Materials | Learned location of Mines (-10) 1849 | -10/Materials | Learned location of Subcaves (-10) 2307 | -10/Materials | Entered Mines 2308 | -10/Mines | Assembled infested the area 2344 | -10/Mines | Released all parts (5) 2365 | -10/Mines | Learned location of Zion (-7) 2374 | -10/Mines | Lost 4 parts (2n2w) 2382 | -10/Mines | Met a Derelict bent on vengeance 2384 | -10/Mines | A weapon hastily lodged in a ceiling crevice suddenly fell to the ground 2519 | -10/Mines | Found the Drone Emporium 2521 | -10/Mines | Found Prototype Device 2521 | -10/Mines | Identified Bomb Drone Bay 2556 | -10/Mines | Discovered new exit (range 3) 2559 | -10/Mines | Entered Materials 2559 | -9/Materials | Evolved 2 slots: Propulsion x1, Utility x1 2560 | -9/Materials | Identified exit to Mines 2561 | -9/Materials | Identified exit to Materials 3108 | -9/Materials | Lost 3 allies 3539 | -9/Materials | System corruption reached 10% 3861 | -9/Materials | Lost 3 parts (2n1u) 3867 | -9/Materials | Loaded intel: 11 trap records 3918 | -9/Materials | Learned Materials trap positions 3960 | -9/Materials | Learned location of 1 exit from Storage 3991 | -9/Materials | Learned Recycling recycling unit intel 4010 | -9/Materials | Learned location of 2 exits from Materials 4038 | -9/Materials | Learned 4 Recycling zone layouts 4171 | -9/Materials | Build established: Scavenger-Mutant 4193 | -9/Materials | Discovered exit to Materials (range 11) 4594 | -9/Materials | Identified exit to Storage 4686 | -9/Materials | Build established: Mutant 4844 | -9/Materials | Discovered exit to Materials (range 4) 4979 | -9/Materials | Entered Storage 5856 | -9/Storage | Discovered new exit (range 3) 5912 | -9/Storage | Core integrity fell below 50% 6334 | -9/Storage | Met 01-MTF 6636 | -9/Storage | Assisted by bots powering up and referring to "LRC-V3" 6847 | -9/Storage | Entered Recycling 6847 | -9/Recycling | Accompanied by 11 allies (01-MTF) 6849 | -9/Recycling | Loaded intel: 6 recycling unit locations 6933 | -9/Recycling | Build established: Commander-Mutant 7760 | -9/Recycling | Discovered new exit (range 5) 7922 | -9/Recycling | Learned location of 3 exits from Materials 7979 | -9/Recycling | Learned location of 1 exit from Storage 8028 | -9/Recycling | Identified exit to Scraptown 8069 | -9/Recycling | Learned location of 1 exit from Storage 8101 | -9/Recycling | Learned Storage security intel 8128 | -9/Recycling | Scanned before Scraplab entrance 8151 | -9/Recycling | Found Relay Coupler [Proto] 8153 | -9/Recycling | Learned location of 2 exits from Materials 8174 | -9/Recycling | Entered Scraplab 8194 | -9/Recycling | Learned location of 1 exit from Storage 8262 | -9/Recycling | Entered Scraptown 8262 | -9/Scraptown | Accompanied by 8 allies 8262 | -9/Scraptown | System corruption cleaned by C-Scrubber 8532 | -9/Scraptown | Discovered new exit (range 11) 8708 | -9/Scraptown | Visited SPCMW 9002 | -9/Scraptown | Visited UFD Registry 9002 | -9/Scraptown | Registered with UFD as "Raildisc" 9092 | -9/Scraptown | Visited Curators Association 9136 | -9/Scraptown | Visited Science Guys 9200 | -9/Scraptown | Visited Sword Containment 9246 | -9/Scraptown | Visited Scrapoid Pod Storage 9274 | -9/Scraptown | Visited Infowarlord's Domain 9292 | -9/Scraptown | Visited Cartography Club 9312 | -9/Scraptown | Released all parts (7) 9362 | -9/Scraptown | Learned location of Warlord (-4) 9362 | -9/Scraptown | Learned 8 Materials zone layouts 9362 | -9/Scraptown | Learned 12 Materials zone layouts 9362 | -9/Scraptown | Learned 20 Factory zone layouts 9362 | -9/Scraptown | Learned 4 Mines zone layouts 9362 | -9/Scraptown | Learned 16 Materials zone layouts 9362 | -9/Scraptown | Learned 4 Storage zone layouts 9362 | -9/Scraptown | Learned 12 Lower Caves zone layouts 9362 | -9/Scraptown | Learned 20 Lower Caves zone layouts 9362 | -9/Scraptown | Learned 12 Upper Caves zone layouts 9362 | -9/Scraptown | Learned 20 Proximity Caves zone layouts 9362 | -9/Scraptown | Learned location of 2 exits from Factory 9362 | -9/Scraptown | Identified exit to Factory 9362 | -9/Scraptown | Learned location of 1 exit from Research 9380 | -9/Scraptown | Found Deep Structural Scanner 9403 | -9/Scraptown | Visited Abandonware Association 9408 | -9/Scraptown | Learned abandonware demo "REBOOT5.EXE" 9420 | -9/Scraptown | Visited Junk Repository 9434 | -9/Scraptown | Visited Modified Component R&D 9473 | -9/Scraptown | Found Exp. Sensor Array 10727 | -9/Scraptown | Visited Junk Repository 10839 | -9/Scraptown | Visited Supply Room 11382 | -9/Scraptown | Found Prototype Slashing Weapon 11569 | -9/Scraptown | Met Optimus 11569 | -9/Scraptown | Accepted into 0bPrime 11666 | -9/Scraptown | Entered Factory 11666 | -6/Factory | Accompanied by 8 allies 11666 | -6/Factory | Evolved 6 slots: Power x1, Propulsion x2, Utility x2, Weapon x1 11667 | -6/Factory | Identified exit to Factory 11668 | -6/Factory | Identified exit to Extension 11883 | -6/Factory | Discovered new exit (range 13) 11999 | -6/Factory | Lost 5 allies 12103 | -6/Factory | Lost 3 allies 12133 | -6/Factory | Loaded intel: 8 recycling unit locations 12157 | -6/Factory | Identified Companion Sword 12429 | -6/Factory | Lost 3 parts (2n1w) 12454 | -6/Factory | Sucked down chute 12454 | -6/Factory | Entered Waste 12455 | -6/Waste | Met a frightened Derelict 12580 | -6/Waste | Spotted C-40 Crusher 12582 | -6/Waste | Warlord forces began an assault 12585 | -6/Waste | Spotted C-40 Crusher 12592 | -6/Waste | Allies destroyed C-40 Crusher 12593 | -6/Waste | Allies destroyed C-40 Crusher 12619 | -6/Waste | Spotted C-40 Crusher 12619 | -6/Waste | Allies destroyed C-40 Crusher 12643 | -6/Waste | Found Damper Plating 12651 | -6/Waste | Spotted C-40 Crusher 12653 | -6/Waste | Allies destroyed C-40 Crusher 12678 | -6/Waste | Lost 3 allies 12710 | -6/Waste | Spotted C-40 Crusher 12715 | -6/Waste | Allies destroyed C-40 Crusher 12734 | -6/Waste | Found Damper Plating 12970 | -6/Waste | Discovered new exit (range 16) 13039 | -6/Waste | Build established: Tank 13194 | -6/Waste | Found Broken Gamma Bomb Array 13709 | -6/Waste | Identified exit to Factory 13737 | -6/Waste | Entered Factory 13737 | -6/Factory | Accompanied by 11 allies 14168 | -6/Factory | Discovered new exit (range 8) 14175 | -6/Factory | Identified exit to Lower Caves 14455 | -6/Factory | Entered Extension 14458 | -6/Extension | Build established: Skirmisher 14717 | -6/Extension | Loaded intel: 1 recycling unit location 14717 | -6/Extension | Learned location of Protoforge (-3) 15188 | -6/Extension | Build established: Commander-Tank 15270 | -6/Extension | Spotted B-75 Beast 15278 | -6/Extension | Destroyed B-75 Beast 15293 | -6/Extension | Spotted B-75 Beast 15352 | -6/Extension | Lost 8 allies 15355 | -6/Extension | Disrupted transfer network 15376 | -6/Extension | Lost 8 parts (1p2n2u3w) 15507 | -6/Extension | Lost 10 parts (2p2n5u1w) 15600 | -6/Extension | Rescued a captive Derelict 15601 | -6/Extension | Rescued a captive Derelict 15732 | -6/Extension | Energy Cycler disabled 15733 | -6/Extension | Rescued a captive Derelict 15757 | -6/Extension | Build established: Scavenger-Tank 15765 | -6/Extension | Lost 3 allies 15782 | -6/Extension | Rescued A7 15965 | -6/Extension | Discovered exit to Factory (range 10) 15967 | -6/Extension | Discovered new exit (range 6) 16026 | -6/Extension | Identified exit to Cetus 16030 | -6/Extension | Entered Cetus 16030 | -6/Cetus | Accompanied by 9 allies (A7) 16035 | -6/Cetus | Acquired a Cetus Manufacturing Module code from A7 16070 | -6/Cetus | Spotted Cetus Guard 16072 | -6/Cetus | Allies destroyed Cetus Guard 16074 | -6/Cetus | Spotted Cetus Guard 16074 | -6/Cetus | Spotted Cetus Guard 16074 | -6/Cetus | Spotted Cetus Guard 16076 | -6/Cetus | Allies destroyed Cetus Guard 16080 | -6/Cetus | Allies destroyed Cetus Guard 16083 | -6/Cetus | Allies destroyed Cetus Guard 16164 | -6/Cetus | Started Cetus Manufacturing Module 16189 | -6/Cetus | Manufactured an Enhanced Grunt 16214 | -6/Cetus | Manufactured an Enhanced Grunt 16238 | -6/Cetus | Discovered new exit (range 15) 16239 | -6/Cetus | Manufactured an Enhanced Grunt 16264 | -6/Cetus | Manufactured an Enhanced Grunt 16282 | -6/Cetus | Spotted Cetus Guard 16282 | -6/Cetus | Spotted Cetus Guard 16283 | -6/Cetus | Spotted Cetus Guard 16284 | -6/Cetus | Spotted Cetus Guard 16288 | -6/Cetus | Destroyed Cetus Guard 16288 | -6/Cetus | Allies destroyed Cetus Guard 16289 | -6/Cetus | Manufactured an Enhanced Grunt 16299 | -6/Cetus | Allies destroyed Cetus Guard 16311 | -6/Cetus | Allies destroyed Cetus Guard 16315 | -6/Cetus | Extracted ID and sensor layout for unrecognized location from A7's data core 16322 | -6/Cetus | Discovered exit to Factory (range 16) 16330 | -6/Cetus | Lost 3 allies 16331 | -6/Cetus | Met Revision 17 16425 | -6/Cetus | Identified exit to Archives 16602 | -6/Cetus | Entered Archives 16602 | -6/Archives | Accompanied by 10 allies 16738 | -6/Archives | Discovered new exit (range 16) 16858 | -6/Archives | Discovered exit to Factory (range 14) 16911 | -6/Archives | Discovered new exit (range 14) 16941 | -6/Archives | Build established: Scavenger-Mutant 17096 | -6/Archives | Identified exit to Hub_04(d) 17263 | -6/Archives | Build established: Scavenger-Tank 17486 | -6/Archives | Entered Hub_04(d) 17486 | -6/Hub_04(d) | Accompanied by 7 allies 17595 | -6/Hub_04(d) | Identified exit to Garrison 18059 | -6/Hub_04(d) | Discovered exit to Factory (range 6) 18197 | -6/Hub_04(d) | Spotted B-75 Beast 18229 | -6/Hub_04(d) | Found Prototype Device 18229 | -6/Hub_04(d) | Identified Exp. Thermal Shield 18267 | -6/Hub_04(d) | Network Hub disabled 18267 | -6/Hub_04(d) | Garrison activated, responded to threat 18272 | -6/Hub_04(d) | Network Hub disabled 18273 | -6/Hub_04(d) | Spotted Lightning 18273 | -6/Hub_04(d) | Spotted Lightning 18275 | -6/Hub_04(d) | Spotted Lightning 18296 | -6/Hub_04(d) | Attached CPS modules to Lightning. 18305 | -6/Hub_04(d) | System corruption reached 10% 18323 | -6/Hub_04(d) | Spotted Lightning 18325 | -6/Hub_04(d) | Spotted Lightning 18364 | -6/Hub_04(d) | Destroyed Lightning 18370 | -6/Hub_04(d) | Found Prototype Device 18373 | -6/Hub_04(d) | Found Prototype Processor 18375 | -6/Hub_04(d) | Spotted Lightning 18424 | -6/Hub_04(d) | Rewired Lightning 18450 | -6/Hub_04(d) | Destroyed Lightning 18511 | -6/Hub_04(d) | Destroyed Lightning 18536 | -6/Hub_04(d) | First assault squad dispatched 18562 | -6/Hub_04(d) | Destroyed Lightning 18581 | -6/Hub_04(d) | Core integrity fell below 50% 18588 | -6/Hub_04(d) | Destroyed Lightning 18606 | -6/Hub_04(d) | Build established: Scavenger-Mutant 18654 | -6/Hub_04(d) | Identified Exp. EM Shield 18656 | -6/Hub_04(d) | Destroyed 8 combat bots 18946 | -6/Hub_04(d) | Entered Garrison 18946 | -6/Garrison | Accompanied by 1 ally 18956 | -6/Garrison | Triggered checkpoint 18966 | -6/Garrison | Attached CPS modules to Lightning. 19010 | -6/Garrison | Garrison Relay disabled 19119 | -6/Garrison | Spotted B-75 Beast 19153 | -6/Garrison | Destroyed B-75 Beast 19206 | -6/Garrison | Found Prototype Energy Cannon 19212 | -6/Garrison | Found Prototype Device 19212 | -6/Garrison | Identified Exp. Phase Shifter 19216 | -6/Garrison | Found Exp. EM Shield 19316 | -6/Garrison | Triggered checkpoint 19342 | -6/Garrison | Triggered checkpoint 19605 | -6/Garrison | Lost 3 allies 19695 | -6/Garrison | Garrison Relay disabled 19759 | -6/Garrison | Triggered checkpoint 19824 | -6/Garrison | Triggered checkpoint 19868 | -6/Garrison | Build established: Scavenger-Tank 19888 | -6/Garrison | Triggered checkpoint 19930 | -6/Garrison | Lost 3 parts (1p2w) 19930 | -6/Garrison | Discovered exit to Factory (range 15) 20144 | -6/Garrison | Triggered checkpoint 20174 | -6/Garrison | Garrison Relay disabled 20250 | -6/Garrison | Discovered exit to Factory (range 8) 20416 | -6/Garrison | Triggered checkpoint 20473 | -6/Garrison | Garrison Relay disabled 20497 | -6/Garrison | Installed Relay Interface Framework 20542 | -6/Garrison | Discovered exit to Factory (range 9) 20655 | -6/Garrison | Triggered checkpoint 20709 | -6/Garrison | Garrison Relay disabled 20731 | -6/Garrison | Garrison Relay disabled 20876 | -6/Garrison | Identified EMDS 21037 | -6/Garrison | Spotted Striker 21037 | -6/Garrison | Spotted Striker 21452 | -6/Garrison | System corruption reached 30% 21453 | -6/Garrison | Entered Factory 21453 | -5/Factory | Evolved 2 slots: Utility x2 21454 | -5/Factory | Identified exit to Upper Caves 21543 | -5/Factory | Entered Upper Caves 21544 | -5/Upper Caves | Identified exit to Upper Caves 21921 | -5/Upper Caves | Learned 8 Factory zone layouts 22130 | -5/Upper Caves | Entered another Upper Caves area 22132 | -5/Upper Caves | Attracted the attention of an 0b10 checkpoint 22493 | -5/Upper Caves | Learned Factory terminal intel 22497 | -5/Upper Caves | Encountered an infested base 22555 | -5/Upper Caves | Destroyed 11 combat bots 22691 | -5/Upper Caves | Discovered new exit (range 11) 22700 | -5/Upper Caves | Identified Exp. Targeting Computer 22726 | -5/Upper Caves | Identified exit to Factory 22966 | -5/Upper Caves | Encountered a Warlord checkpoint 23021 | -5/Upper Caves | Discovered new exit (range 15) 23243 | -5/Upper Caves | Identified exit to Zhirov 23244 | -5/Upper Caves | Entered Zhirov 23244 | -5/Zhirov | Discovered new exit (range 3) 23262 | -5/Zhirov | Met Zhirov 23281 | -5/Zhirov | Learned location of Quarantine (-3) 23281 | -5/Zhirov | Learned location of Command (-1) 23290 | -5/Zhirov | Zhirov requested help retrieving the SGEMP Prototype 23306 | -5/Zhirov | Found Alien Artifact 23306 | -5/Zhirov | Identified Integrated Dissipator 23306 | -5/Zhirov | Installed Integrated Dissipator, increased core heat dissipation (+20) 23400 | -5/Zhirov | Found Alien Artifact 23544 | -5/Zhirov | Identified exit to Proximity Caves 23546 | -5/Zhirov | Entered Proximity Caves 23899 | -4/Proximity Caves | Attracted the attention of an 0b10 checkpoint 24366 | -4/Proximity Caves | Learned Research trap positions 24477 | -4/Proximity Caves | Learned Research trap positions 24745 | -4/Proximity Caves | Learned 4 Research zone layouts 25025 | -4/Proximity Caves | Entered Factory 25025 | -4/Factory | Evolved 2 slots: Propulsion x1, Utility x1 25026 | -4/Factory | Identified exit to Research 25027 | -4/Factory | Identified exit to Upper Caves 25028 | -4/Factory | Loaded intel: 26 terminal locations 25077 | -4/Factory | Identified exit to Armory 25203 | -4/Factory | Loaded intel: 8 recycling unit locations 25353 | -4/Factory | Spotted B-86 Titan 25443 | -4/Factory | Destroyed 11 combat bots 25480 | -4/Factory | Lost 6 parts (1p1n3u1w) 25487 | -4/Factory | Entered Armory 25702 | -4/Armory | Lost 4 allies 25938 | -4/Armory | Identified Transdimensional Reconstructor 25938 | -4/Armory | Warped through subspace to slip node 25938 | -4/Armory | Discovered new exit (range 1) 25938 | -4/Armory | Identified exit to Lab 26085 | -4/Armory | Assisted by bots powering up and referring to "LRC-V3" 26167 | -4/Armory | Lost 5 allies 26386 | -4/Armory | Lost 5 allies 26415 | -4/Armory | Build established: Scavenger-Gunner 26672 | -4/Armory | Entered Lab 26674 | -4/Lab | Discovered exit to Research (range 9) 26694 | -4/Lab | Hidden lab's door opened automatically 26694 | -4/Lab | Sensor layout match revealed 26695 | -4/Lab | Gained access to the hidden lab's interior 26958 | -4/Lab | Found Prototype Special Weapon 26969 | -4/Lab | Build established: Scavenger-Mutant 27115 | -4/Lab | Found Prototype Energy Cannon 27123 | -4/Lab | Found Prototype Protection 27127 | -4/Lab | Found Prototype Hackware 27128 | -4/Lab | Detected by scanners 27137 | -4/Lab | Identified Hvy. Regenerative Plating 27146 | -4/Lab | Confronted by A5 27155 | -4/Lab | Destroyed A5 27183 | -4/Lab | Found Prototype Hackware 27183 | -4/Lab | Identified Exp. System Shield 27229 | -4/Lab | Found Prototype Energy Gun 27229 | -4/Lab | Identified Hyp. EM Gauss Rifle 27265 | -4/Lab | Found Alien Artifact 27265 | -4/Lab | Identified Core Regenerator 27265 | -4/Lab | Used Core Regenerator, restored core integrity (+183) 27275 | -4/Lab | Found Alien Artifact 27275 | -4/Lab | Identified Integrated Mediator 27275 | -4/Lab | Installed Integrated Mediator, increased core attachment efficiency 27282 | -4/Lab | Found Transdimensional Reconstructor 27293 | -4/Lab | Found Alien Artifact 27344 | -4/Lab | Identified Potential Cannon 27356 | -4/Lab | Identified Quantum Router 27384 | -4/Lab | Identified Gui. Remote Datajack 27435 | -4/Lab | Build established: Scavenger-Gunner 27507 | -4/Lab | Unable to decrypt terminal 27779 | -4/Lab | Entered Research 27779 | -3/Research | Evolved 2 slots: Utility x2 27780 | -3/Research | Identified exit to Research 27782 | -3/Research | Loaded intel: 54 trap records 27963 | -3/Research | Garrison activated, responded to threat 27979 | -3/Research | Revision forces began assault on 0b10 28024 | -3/Research | Lost 10 parts (1p7n1u1w) 28033 | -3/Research | Met up with Revision 17++ 28479 | -3/Research | Research terminal network offline 28590 | -3/Research | Intercept squad dispatched 28907 | -3/Research | Lost 4 allies 28931 | -3/Research | Spotted Striker 28934 | -3/Research | Spotted Striker 28946 | -3/Research | Destroyed Striker 28949 | -3/Research | Destroyed Striker 28965 | -3/Research | Found Gamma Bomb Array 28968 | -3/Research | Found Gamma Bomb Array 29039 | -3/Research | Loaded intel: 5 recycling unit locations 29095 | -3/Research | Build established: Scavenger-Tank 29156 | -3/Research | Spotted Striker 29159 | -3/Research | Spotted Striker 29178 | -3/Research | Destroyed Striker 29185 | -3/Research | Destroyed Striker 29245 | -3/Research | Intercept squad dispatched 29270 | -3/Research | Spotted Tracker 29271 | -3/Research | Spotted Tracker 29280 | -3/Research | Destroyed Tracker 29284 | -3/Research | Destroyed Tracker 29310 | -3/Research | Identified exit to Garrison 29310 | -3/Research | Entered Garrison 29331 | -3/Garrison | Spotted B-90 Cyclops 29360 | -3/Garrison | Rewired B-86 Titan 29378 | -3/Garrison | Rewired B-90 Cyclops 29384 | -3/Garrison | Allies destroyed B-90 Cyclops 29408 | -3/Garrison | Found Unknown Protection 29408 | -3/Garrison | Identified Hvy. Reflective Plating 29597 | -3/Garrison | Garrison Relay disabled 29612 | -3/Garrison | Triggered checkpoint 29781 | -3/Garrison | Spotted B-86 Titan 29799 | -3/Garrison | Destroyed B-86 Titan 29808 | -3/Garrison | Triggered checkpoint 29872 | -3/Garrison | Triggered checkpoint 29878 | -3/Garrison | Found Hvy. Reflective Plating 29934 | -3/Garrison | Discovered exit to Research (range 14) 29948 | -3/Garrison | Expanded RIF knowledge: Threat Obfuscation 29955 | -3/Garrison | Q-Series assembled to engage unique threat in Research 29964 | -3/Garrison | Triggered checkpoint 29992 | -3/Garrison | Garrison Relay disabled 30576 | -3/Garrison | Q-Series assembled to engage unique threat in Research 30582 | -3/Garrison | Entered Research 30582 | -2/Research | Evolved 2 slots: Power x1, Utility x1 30583 | -2/Research | Loaded intel: 63 trap records 30771 | -2/Research | Identified exit to Testing 31229 | -2/Research | Lost 6 parts (2p1n2u1w) 31255 | -2/Research | Intercept squad dispatched 31279 | -2/Research | Entered Testing 31279 | -2/Testing | Accompanied by 1 ally 31295 | -2/Testing | Found Prototype Device 31295 | -2/Testing | Identified 2N-1CE's Frost Array 31332 | -2/Testing | Spotted PG-PNTD7FELAC 31376 | -2/Testing | Assimilated PG-PNTD7FELAC with formatsys_high 31554 | -2/Testing | Spotted Striker 31556 | -2/Testing | Spotted Striker 31556 | -2/Testing | Spotted Alpha 7 31558 | -2/Testing | Destroyed Striker 31561 | -2/Testing | Assimilated Striker with formatsys_high 31574 | -2/Testing | Assimilated Alpha 7 with formatsys_high 31679 | -2/Testing | Found Prototype Energy Cannon 31679 | -2/Testing | Identified Null Cannon 31767 | -2/Testing | Found Prototype Device 31767 | -2/Testing | Identified Adv. Kinecellerator 31844 | -2/Testing | Stole the SGEMP Prototype 32004 | -2/Testing | System corruption reached 10% 32010 | -2/Testing | Intercept squad dispatched 32019 | -2/Testing | Spotted Tracker 32020 | -2/Testing | Spotted Tracker 32032 | -2/Testing | Destroyed Tracker 32035 | -2/Testing | Destroyed Tracker 32041 | -2/Testing | Spotted Combat Programmer 32056 | -2/Testing | Destroyed Combat Programmer 32057 | -2/Testing | Spotted Combat Programmer 32095 | -2/Testing | Destroyed Combat Programmer 32113 | -2/Testing | Found Exp. Targeting Computer 32180 | -2/Testing | Scanned by Researcher 32253 | -2/Testing | Lost 5 parts (2p1u2w) 32259 | -2/Testing | Found Prototype Protection 32259 | -2/Testing | Identified SHELL Armor 32267 | -2/Testing | Found Hvy. Regenerative Plating 32300 | -2/Testing | Discovered new exit (range 19) 32361 | -2/Testing | Destroyed 7 combat bots 32448 | -2/Testing | Spotted Alpha 7 32477 | -2/Testing | Destroyed Alpha 7 32600 | -2/Testing | Spotted PL-FUJ0Q6IWCR 32647 | -2/Testing | Found Prototype Device 32647 | -2/Testing | Identified AEGIS Remote Shield 32744 | -2/Testing | Identified exit to Garrison 32744 | -2/Testing | Entered Garrison 32930 | -2/Garrison | Triggered checkpoint 33003 | -2/Garrison | Expanded RIF knowledge: Program Shield 33006 | -2/Garrison | Destroyed 7 combat bots 33116 | -2/Garrison | Triggered checkpoint 33120 | -2/Garrison | Spotted B-90 Cyclops 33156 | -2/Garrison | Destroyed B-90 Cyclops 33164 | -2/Garrison | Lost 6 allies 33322 | -2/Garrison | Discovered new exit (range 12) 33348 | -2/Garrison | Identified exit to Access 33832 | -2/Garrison | Entered Access 33832 | -1/Access | Evolved 2 slots: Power x1, Weapon x1 33833 | -1/Access | Delivered the SGEMP Prototype to Zhirov 33833 | -1/Access | Zhirov transferred Access data 33834 | -1/Access | Loaded intel: 131 machine locations 33834 | -1/Access | Loaded intel: 118 trap records 33834 | -1/Access | Identified exit to Surface 33834 | -1/Access | Discovered exit to Surface (range 104) 33834 | -1/Access | Identified exit to Command 33834 | -1/Access | Discovered exit to Command (range 40) 33880 | -1/Access | Spotted B-99 Colossus 33893 | -1/Access | Energy Cycler disabled 33895 | -1/Access | Zhirov warped through subspace 34427 | -1/Access | Build established: Generator-Tank 35694 | -1/Access | Entered Command 35953 | -1/Command | Spotted Combat Programmer 36094 | -1/Command | Met MAIN.C 36121 | -1/Command | 0b10 Conduit disabled 36152 | -1/Command | System corruption reached 10% 36163 | -1/Command | Destroyed MAIN.C Shell 36166 | -1/Command | MAIN.C activated Command garrisons 36170 | -1/Command | Zhirov arrived to use SGEMP to disable MAIN.C 36203 | -1/Command | Found Prototype Protection 36203 | -1/Command | Identified Centrium Heavy Armor Plating 36213 | -1/Command | Found Prototype Reactor 36213 | -1/Command | Identified Singularity Reactor 36603 | -1/Command | Found Prototype Device 36603 | -1/Command | Identified Exp. System Purifier 36610 | -1/Command | Found Prototype Device 36610 | -1/Command | Identified Exp. Weapon Cycler 36635 | -1/Command | Found Prototype Reactor 36635 | -1/Command | Identified Zero-point Reactor 36639 | -1/Command | Found Zero-point Reactor 36647 | -1/Command | Found Null Cannon 36670 | -1/Command | Found Prototype Processor 36892 | -1/Command | Build established: Generator-Gunner 37041 | -1/Command | Discovered exit to Surface (range 13) 37593 | -1/Command | Identified Exp. Core Analyzer 39117 | -1/Command | Build established: Generator-Tank 39136 | -1/Command | Phase Generator disabled 39437 | -1/Command | Build established: Generator-Gunner 39952 | -1/Command | Found Prototype Device 39961 | -1/Command | Identified Exp. Thermal Defense Suite 40768 | -1/Command | Build established: Generator-Tank 40902 | -1/Command | Found Quantum Capacitor 41286 | -1/Command | Found Prototype Energy Cannon 41286 | -1/Command | Identified Cld. Nova Cannon 41293 | -1/Command | All MAIN.C guards destroyed 41300 | -1/Command | Found Corrupted AEGIS Remote Shield 41435 | -1/Command | Build established: Generator-Gunner 41513 | -1/Command | Discovered exit to Surface (range 8) 42009 | -1/Command | Found Corrupted Hvy. Regenerative Plating 42241 | -1/Command | Found Hvy. Regenerative Plating 42268 | -1/Command | Build established: Mutant 42435 | -1/Command | Found Corrupted Zero-point Reactor 42440 | -1/Command | Found Zero-point Reactor 42443 | -1/Command | Found Zero-point Reactor 42718 | -1/Command | Build established: Generator-Mutant 42829 | -1/Command | Discovered exit to Surface (range 44) 42829 | -1/Command | Discovered exit to Surface (range 87) 42829 | -1/Command | Extracted map data and part IDs from MAIN.C's data core 42837 | -1/Command | Found Zero-point Reactor 43048 | -1/Command | Found Omega Cannon 43106 | -1/Command | Found Corrupted Cld. Nova Cannon 43124 | -1/Command | Found Corrupted Zero-point Reactor 43347 | -1/Command | Build established: Generator-Gunner 44287 | -1/Command | Found Corrupted Adv. Kinecellerator 44293 | -1/Command | Found Corrupted Exp. Core Analyzer 45671 | -1/Command | Build established: Scavenger-Gunner 46508 | -1/Command | Build established: Generator-Mutant 46919 | -1/Command | Build established: Generator-Gunner 47298 | -1/Command | Build established: Scavenger-Tank 47747 | -1/Command | Found Exp. Targeting Computer 47970 | -1/Command | Found Exp. Targeting Computer 48093 | -1/Command | Warped through subspace to slip node 48093 | -1/Command | Discovered new exit (range 4) 48101 | -1/Command | Entered Access_0 48104 | -1/Access_0 | Met Architect 48105 | -1/Access_0 | Architect warped through subspace 48117 | -1/Access_0 | Destroyed A8 48146 | -1/Access_0 | Architect warped through subspace 48215 | -1/Access_0 | Architect warped through subspace 48245 | -1/Access_0 | Architect warped through subspace 48247 | -1/Access_0 | Subspace Access Node disabled 48273 | -1/Access_0 | Architect warped through subspace 48302 | -1/Access_0 | Architect warped through subspace 48325 | -1/Access_0 | Architect warped through subspace 48370 | -1/Access_0 | Subspace Access Node disabled 48383 | -1/Access_0 | Architect warped through subspace 48415 | -1/Access_0 | Architect warped through subspace 48444 | -1/Access_0 | Architect warped through subspace 48467 | -1/Access_0 | Architect warped through subspace 48473 | -1/Access_0 | A6 warped into view 48483 | -1/Access_0 | Destroyed A6 48511 | -1/Access_0 | Found Corrupted Med. Regenerative Plating 48528 | -1/Access_0 | Architect warped through subspace 48533 | -1/Access_0 | Found Exp. Targeting Computer 48550 | -1/Access_0 | Architect warped through subspace 48571 | -1/Access_0 | Architect warped through subspace 48617 | -1/Access_0 | Architect warped through subspace 48657 | -1/Access_0 | Architect warped through subspace 48694 | -1/Access_0 | Subspace Access Node disabled 48716 | -1/Access_0 | Architect warped through subspace 48748 | -1/Access_0 | Architect warped through subspace 48775 | -1/Access_0 | Architect warped through subspace 48797 | -1/Access_0 | Architect warped through subspace 48822 | -1/Access_0 | Architect warped through subspace 48854 | -1/Access_0 | Architect warped through subspace 48857 | -1/Access_0 | Build established: Generator-Gunner 48863 | -1/Access_0 | Core integrity fell below 50% 48876 | -1/Access_0 | Architect warped through subspace 48887 | -1/Access_0 | Architect warped through subspace 48898 | -1/Access_0 | Architect warped through subspace 48907 | -1/Access_0 | Architect warped through subspace 48934 | -1/Access_0 | Architect warped through subspace 48955 | -1/Access_0 | Subspace Access Node disabled 48975 | -1/Access_0 | Destroyed Architect 48976 | -1/Access_0 | Architect triggered a singularity event 48977 | -1/Access_0 | Released all parts (19) 48977 | -1/Access_0 | Extracted unknown sensor trigger ID from Architect's data core 48978 | -1/Access_0 | Found Hpw. Transdimensional Reconstructor 48978 | -1/Access_0 | Warped through subspace to slip node 48978 | -1/Access_0 | Discovered exit to Surface (range 8) 48983 | *** | Escaped singularity! Last Messages --------------- 48977_ Released Huge Storage Unit. 48977_ Released Enh. Armored Heavy Treads. 48977_ Released Zero-point Reactor. 48977_ Released Cld. Nova Cannon. 48977_ Released Exp. Targeting Computer. 48977_ Released Zero-point Reactor. 48977_ Released Null Cannon. 48977_ Released 2N-1CE's Frost Array. 48977_ Released Hvy. Regenerative Plating. 48977_ Released Med. Regenerative Plating. 48977_ Acquired data core, extracted unknown sensor trigger ID. 48978_ A0_COM: 9. 48978_ Acquired Hpw. Transdimensional Reconstructor. 48978_ Warped through subspace, drawn to slip node. 48978_ EXIT=FOUND: SURFACE 48979_ A0_COM: 8. 48980_ A0_COM: 7. 48981_ A0_COM: 6. 48982_ A0_COM: 5. 48983_ A0_COM: 4. Map ----- +----------------------------------------------------+ | | | | | | | | | | | | | | | | | | | | | | | | | | | | | | | | | ?????????????????????????????????????????????????? | | ?????????????????????????????????????????????????? | | ?????????????????????????????????????????????????? | | ?????????????????????????????????????????????????? | | ?????????????????????????????????????????????????? | | ?????????????????????????????????????????????????? | | ????????????????????????###??????????????????????? | | ???????????????????????## ##?????????????????????? | | ???????????????????????# #?????????????????????? | | ???????????????????????# @ #?????????????????????? | | ??????????????????????## #?????????????????????? | | ??????????????????????# #?????????????????????? | | ??????????????????????# ##?????????????????????? | | ??????????????????????## #?????????????????????? | | ??????????????????????# #?????????????????????? | | ??????????????????????# ##?????????????????????? | | ??????????????????????# < #?????????????????????? | | ??????????????????????# ##?????????????????????? | | ??????????????????????## #??????????????????????? | | ???????????????????????####??????????????????????? | | ?????????????????????????????????????????????????? | | ?????????????????????????????????????????????????? | | ?????????????????????????????????????????????????? | | ?????????????????????????????????????????????????? | | ?????????????????????????????????????????????????? | | ?????????????????????????????????????????????????? | | ?????????????????????????????????????????????????? | | ?????????????????????????????????????????????????? | | ?????????????????????????????????????????????????? | | ?????????????????????????????????????????????????? | | ?????????????????????????????????????????????????? | | ?????????????????????????????????????????????????? | | ?????????????????????????????????????????????????? | | ?????????????????????????????????????????????????? | +----------------------------------------------------+ Best States ------------- Heat Dissipation 210 Energy Generation 150 Energy Capacity 1590 Matter Stores 300 Matter Capacity 300 Sight Range 16 Robot Scan Range 20 Terrain Scan Density 10 Jamming Range 12 Power Amplification 30 Additional Mass Support 25 Armor Coverage 3000 Resistance: TH 30 Resistance: EM 90 Utility Shielding 66 Point Defense Rating 240 Weapon Cycling 30 Evasion (%) 62 Targeting Accuracy 36 Core Analysis 8 Recoil Reduction 6 Kinecelleration 50 Offensive Hacking 14 Relay Coupler Types 3 Relay Coupler Value 105 Authchip Count 1 Trap Extractor Capacity 8 Item Schematics ----------------- Hcp. Storage Unit | -10/Materials | Hacked Huge Storage Unit | -10/Materials | Hacked Assault Drone Bay | -5/Zhirov | Free Exp. Heat Sink | -5/Zhirov | Free Imp. Arc Thrower | -5/Zhirov | Free Exp. Optical Array | -5/Zhirov | Free Robot Schematics ------------------ M-13 Machinist | -9/Recycling | Hacked Fabricated ------------ Nothing Repaired ---------- Nothing Studied --------- Lgt. Treads | -9/Materials | Hacked Lgt. EM Pulse Cannon | -9/Materials | Hacked Imp. Light Cannon | -9/Materials | Hacked Alien Tech Used ----------------- Integrated Dissipator Transdimensional Reconstructor Core Regenerator Integrated Mediator High-powered Transdimensional Reconstructor Achievements -------------- Frienemies Sorry Old Pal Special Delivery What Happened At The End There Challenges ------------ None Game ------ Seed VariableNetworkedCoupler Manual? 0 Play Time 07:53:21 Cumulative 355.2 hours Start 2026.02.04 @ 19:42:53 End 2026.02.06 @ 02:06:20 Sessions 7 Manual Loads 0 Difficulty Rogue Special Mode None Game No. 136 Rogue 135 Adventurer 1 Explorer 0 Win Type 6 Total 15 Types 6/2/2/0/1/0/2/1/0/1 Lore% 61 Gallery% 81 Achievement% 69 Wizard Run 0 Options --------- Layout 0 ASCII 0 Keyboard 0 Movement Arrows Keybinds 0 Fullscreen 2 Font 24/Smallcaps Map View 76x50 Zoom Use 0% Tactical HUD 1 Map Filters NONE Filters NONE Steam 1 RUN: cd0cd6e7-f558-42ce-af49-5047974b551a